Body,Body name,Date,Transaction number,Amount,Non recoverable VAT included in amount,Supplier name,Supplier ID,Expense area,Fund type,Expense type,Category description,
http://statistics.data.gov.uk/search?search=E07000114,Thanet District Council,01/09/2016,414380,814.00,,John Reeve (Plant Hire) Ltd,REE013,Operational Services,Revenue,Cont Hire & Operating Lease,Vehicle Management,
http://statistics.data.gov.uk/search?search=E07000114,Thanet District Council,06/09/2016,415736,638.95,,Academia Ltd,ACA008,East Kent Shared Services,Revenue,"Equip, Furniture And Materials",ICT,
http://statistics.data.gov.uk/search?search=E07000114,Thanet District Council,06/09/2016,414790,371.16,,Bookpoint Limited,BOO003,Community Services,Revenue,"Equip, Furniture And Materials",Stationery,
http://statistics.data.gov.uk/search?search=E07000114,Thanet District Council,06/09/2016,415690,2165.88,,Bt Payment Services Ltd,BTE003,Corporate Resources and S151,Balance Sheet,Telephone Holding Account,ICT,
http://statistics.data.gov.uk/search?search=E07000114,Thanet District Council,06/09/2016,415079,39504.00,,Civica Uk Ltd,CIV003,East Kent Shared Services,Revenue,Communications & Computing,ICT,
http://statistics.data.gov.uk/search?search=E07000114,Thanet District Council,06/09/2016,412069,-2317.17,,Commercial Services Trading Ltd,COM048,Operational Services,Revenue,Cont Hire & Operating Lease,Various Cats - Public Sector,
http://statistics.data.gov.uk/search?search=E07000114,Thanet District Council,06/09/2016,415856,2460.38,,Commercial Services Trading Ltd,COM048,Operational Services,Revenue,Cont Hire & Operating Lease,Various Cats - Public Sector,
http://statistics.data.gov.uk/search?search=E07000114,Thanet District Council,06/09/2016,415289,2906.55,,Dennis Eagle Ltd,DEN005,Operational Services,Revenue,Direct Transport Costs,Vehicle Management,
http://statistics.data.gov.uk/search?search=E07000114,Thanet District Council,06/09/2016,415547,252.08,,Dennis Eagle Ltd,DEN005,Operational Services,Revenue,Direct Transport Costs,Vehicle Management,
http://statistics.data.gov.uk/search?search=E07000114,Thanet District Council,06/09/2016,415625,555.42,,E Saunders Margate Ltd,SAU001,Operational Services,Revenue,"Repairs,  Alter & Mtce - Build",Construction-Repair And Maint,
http://statistics.data.gov.uk/search?search=E07000114,Thanet District Council,06/09/2016,415626,510.00,,E Saunders Margate Ltd,SAU001,Operational Services,Revenue,"Repairs,  Alter & Mtce - Build",Construction-Repair And Maint,
http://statistics.data.gov.uk/search?search=E07000114,Thanet District Council,06/09/2016,415256,425.80,,Forecourt Installation Services Ltd,FOR021,Operational Services,Revenue,"Repairs,  Alter & Mtce - Build",Maritime Services,
http://statistics.data.gov.uk/search?search=E07000114,Thanet District Council,06/09/2016,415555,443.50,,Frandham Boarding Kennels,FRA010,Operational Services,Revenue,Services,Environmental Services,
http://statistics.data.gov.uk/search?search=E07000114,Thanet District Council,06/09/2016,415854,588.40,,Glasdon Uk Ltd,GLA001,Operational Services,Revenue,"Equip, Furniture And Materials",Environmental Services,
http://statistics.data.gov.uk/search?search=E07000114,Thanet District Council,06/09/2016,415553,1200.83,,Greenham,GRE001,Operational Services,Revenue,"Clothes, Uniforms & Laundry",Clothing,
http://statistics.data.gov.uk/search?search=E07000114,Thanet District Council,06/09/2016,415550,900.00,,Gulliver'S Truck Hire Limited,GUL001,Operational Services,Revenue,Cont Hire & Operating Lease,Vehicle Management,
http://statistics.data.gov.uk/search?search=E07000114,Thanet District Council,06/09/2016,415595,1470.00,,Gulliver'S Truck Hire Limited,GUL001,Operational Services,Revenue,Cont Hire & Operating Lease,Vehicle Management,
http://statistics.data.gov.uk/search?search=E07000114,Thanet District Council,06/09/2016,415858,556.98,,H E Municipal Engineering Ltd,HEM003,Operational Services,Revenue,Direct Transport Costs,Vehicle Management,
http://statistics.data.gov.uk/search?search=E07000114,Thanet District Council,06/09/2016,415721,1120.00,,Hays Specialist Recruitment Ltd,HAY020,Corporate Resources and S151,Revenue,Services,Human Resources,
http://statistics.data.gov.uk/search?search=E07000114,Thanet District Council,06/09/2016,415305,924.44,,Hr Go (Kent) Ltd,HRG001,Operational Services,Revenue,Agency Staff,Human Resources,
http://statistics.data.gov.uk/search?search=E07000114,Thanet District Council,06/09/2016,415310,1246.30,,Hr Go (Kent) Ltd,HRG001,Operational Services,Revenue,Agency Staff,Human Resources,
http://statistics.data.gov.uk/search?search=E07000114,Thanet District Council,06/09/2016,415313,836.31,,Hr Go (Kent) Ltd,HRG001,Operational Services,Revenue,Agency Staff,Human Resources,
http://statistics.data.gov.uk/search?search=E07000114,Thanet District Council,06/09/2016,415314,285.56,,Hr Go (Kent) Ltd,HRG001,Operational Services,Revenue,Agency Staff,Human Resources,
http://statistics.data.gov.uk/search?search=E07000114,Thanet District Council,06/09/2016,415696,529.47,,Hr Go (Kent) Ltd,HRG001,Community Services,Revenue,Agency Staff,Human Resources,
http://statistics.data.gov.uk/search?search=E07000114,Thanet District Council,06/09/2016,415697,358.16,,Hr Go (Kent) Ltd,HRG001,Operational Services,Revenue,Agency Staff,Human Resources,
http://statistics.data.gov.uk/search?search=E07000114,Thanet District Council,06/09/2016,415698,785.88,,Hr Go (Kent) Ltd,HRG001,Operational Services,Revenue,Agency Staff,Human Resources,
http://statistics.data.gov.uk/search?search=E07000114,Thanet District Council,06/09/2016,415699,486.47,,Hr Go (Kent) Ltd,HRG001,Operational Services,Revenue,Agency Staff,Human Resources,
http://statistics.data.gov.uk/search?search=E07000114,Thanet District Council,06/09/2016,415700,2167.46,,Hr Go (Kent) Ltd,HRG001,Operational Services,Revenue,Agency Staff,Human Resources,
http://statistics.data.gov.uk/search?search=E07000114,Thanet District Council,06/09/2016,415701,1474.25,,Hr Go (Kent) Ltd,HRG001,Operational Services,Revenue,Agency Staff,Human Resources,
http://statistics.data.gov.uk/search?search=E07000114,Thanet District Council,06/09/2016,415719,10848.39,,Hr Go (Kent) Ltd,HRG001,Operational Services,Revenue,Agency Staff,Human Resources,
http://statistics.data.gov.uk/search?search=E07000114,Thanet District Council,06/09/2016,415720,14236.42,,Hr Go (Kent) Ltd,HRG001,Operational Services,Revenue,Agency Staff,Human Resources,
http://statistics.data.gov.uk/search?search=E07000114,Thanet District Council,06/09/2016,415709,840.00,,Irrv,IRR002,East Kent Shared Services,Revenue,Expenses,Human Resources,
http://statistics.data.gov.uk/search?search=E07000114,Thanet District Council,06/09/2016,414870,3500.00,,Kent County Council,KCC002,Chief Executive,Revenue,Grants & Subscriptions,Various Cats - Public Sector,
http://statistics.data.gov.uk/search?search=E07000114,Thanet District Council,06/09/2016,415124,32098.32,,Kent County Council (Kcs),KCC003,Operational Services,Revenue,Direct Transport Costs,Facilities And Management Serv,
http://statistics.data.gov.uk/search?search=E07000114,Thanet District Council,06/09/2016,415357,2949.24,,Kent County Council (Kcs),KCC003,Operational Services,Revenue,"Equip, Furniture And Materials",Facilities And Management Serv,
http://statistics.data.gov.uk/search?search=E07000114,Thanet District Council,06/09/2016,415714,2851.24,,Kent County Council (Kcs),KCC003,Operational Services,Revenue,"Equip, Furniture And Materials",Facilities And Management Serv,
http://statistics.data.gov.uk/search?search=E07000114,Thanet District Council,06/09/2016,415632,2159.43,,Lobster Van Hire Ltd,LOB001,Operational Services,Revenue,Cont Hire & Operating Lease,Vehicle Management,
http://statistics.data.gov.uk/search?search=E07000114,Thanet District Council,06/09/2016,415563,347.10,,Main Man Supplies Ltd,MAI001,Operational Services,Revenue,"Clothes, Uniforms & Laundry",Clothing,
http://statistics.data.gov.uk/search?search=E07000114,Thanet District Council,06/09/2016,415740,300.00,,Maxwells Grounds Maintenance Ltd,MAX002,Corporate Governance,Revenue,"Repairs,  Alter & Mtce - Build",Construction-Repair And Maint,
http://statistics.data.gov.uk/search?search=E07000114,Thanet District Council,06/09/2016,415278,960.06,,Mears Ltd,MEA003,Corporate Resources and S151,Balance Sheet,Repairs And Mtce Holding A/C,Construction-Repair And Maint,
http://statistics.data.gov.uk/search?search=E07000114,Thanet District Council,06/09/2016,415279,8122.90,,Mears Ltd,MEA003,Corporate Resources and S151,Balance Sheet,Repairs And Mtce Holding A/C,Construction-Repair And Maint,
http://statistics.data.gov.uk/search?search=E07000114,Thanet District Council,06/09/2016,415280,1114.23,,Mears Ltd,MEA003,Corporate Resources and S151,Balance Sheet,Repairs And Mtce Holding A/C,Construction-Repair And Maint,
http://statistics.data.gov.uk/search?search=E07000114,Thanet District Council,06/09/2016,415282,8087.75,,Mears Ltd,MEA003,Corporate Resources and S151,Balance Sheet,Repairs And Mtce Holding A/C,Construction-Repair And Maint,
http://statistics.data.gov.uk/search?search=E07000114,Thanet District Council,06/09/2016,415283,13480.81,,Mears Ltd,MEA003,Corporate Resources and S151,Balance Sheet,Repairs And Mtce Holding A/C,Construction-Repair And Maint,
http://statistics.data.gov.uk/search?search=E07000114,Thanet District Council,06/09/2016,415284,104174.95,,Mears Ltd,MEA003,Corporate Resources and S151,Balance Sheet,Repairs And Mtce Holding A/C,Construction-Repair And Maint,
http://statistics.data.gov.uk/search?search=E07000114,Thanet District Council,06/09/2016,415285,13565.13,,Mears Ltd,MEA003,Corporate Resources and S151,Balance Sheet,Repairs And Mtce Holding A/C,Construction-Repair And Maint,
http://statistics.data.gov.uk/search?search=E07000114,Thanet District Council,06/09/2016,415286,5555.74,,Mears Ltd,MEA003,Corporate Resources and S151,Balance Sheet,Repairs And Mtce Holding A/C,Construction-Repair And Maint,
http://statistics.data.gov.uk/search?search=E07000114,Thanet District Council,06/09/2016,414863,25000.00,,Methods Digital Limited,MET016,East Kent Shared Services,Revenue,Services,Consultancy,
http://statistics.data.gov.uk/search?search=E07000114,Thanet District Council,06/09/2016,415743,51077.31,,Molyneux Rose Ltd Cl Acc-I/S M'Gate,MOL002,Operational Services,Revenue,Rents,Financial Services,
http://statistics.data.gov.uk/search?search=E07000114,Thanet District Council,06/09/2016,415742,50124.24,,Molyneux Rose Ltd Cl Acc-I/S R'Gate,MOL003,Operational Services,Revenue,Rents,Facilities And Management Serv,
http://statistics.data.gov.uk/search?search=E07000114,Thanet District Council,06/09/2016,415970,3794.78,,National Express Ltd,NAT010,Community Services,Revenue,Services,Agency Payments,
http://statistics.data.gov.uk/search?search=E07000114,Thanet District Council,06/09/2016,415679,27252.78,,Ocs Group Uk Ltd T/A Fountains,OCS005,Operational Services,Revenue,Cleaning & Domestic Supplies,Cleaning And Janitorial,
http://statistics.data.gov.uk/search?search=E07000114,Thanet District Council,06/09/2016,415681,18056.74,,Ocs Group Uk Ltd T/A Fountains,OCS005,Operational Services,Revenue,Cleaning & Domestic Supplies,Cleaning And Janitorial,
http://statistics.data.gov.uk/search?search=E07000114,Thanet District Council,06/09/2016,415682,695.77,,Ocs Group Uk Ltd T/A Fountains,OCS005,Operational Services,Revenue,Fixtures & Fittings,Cleaning And Janitorial,
http://statistics.data.gov.uk/search?search=E07000114,Thanet District Council,06/09/2016,415683,492.64,,Ocs Group Uk Ltd T/A Fountains,OCS005,Operational Services,Revenue,Fixtures & Fittings,Cleaning And Janitorial,
http://statistics.data.gov.uk/search?search=E07000114,Thanet District Council,06/09/2016,415684,621.95,,Ocs Group Uk Ltd T/A Fountains,OCS005,Operational Services,Revenue,Fixtures & Fittings,Cleaning And Janitorial,
http://statistics.data.gov.uk/search?search=E07000114,Thanet District Council,06/09/2016,414683,1829.02,,Oracle Corporation Uk Ltd,ORA001,East Kent Shared Services,Revenue,Communications & Computing,ICT,
http://statistics.data.gov.uk/search?search=E07000114,Thanet District Council,06/09/2016,415636,1105.95,,Pier Rigging And Testing Limited,PIE008,Operational Services,Revenue,"Repairs,  Alter & Mtce - Build",Maritime Services,
http://statistics.data.gov.uk/search?search=E07000114,Thanet District Council,06/09/2016,415545,1125.00,,Puls Global Ltd,PUL006,Operational Services,Revenue,"Equip, Furniture And Materials",Facilities And Management Serv,
http://statistics.data.gov.uk/search?search=E07000114,Thanet District Council,06/09/2016,415961,450.00,,R Cannon,CAN007,Operational Services,Revenue,Services,Maritime Services,
http://statistics.data.gov.uk/search?search=E07000114,Thanet District Council,06/09/2016,415964,765.00,,R Cannon,CAN007,Operational Services,Revenue,"Equip, Furniture And Materials",Maritime Services,
http://statistics.data.gov.uk/search?search=E07000114,Thanet District Council,06/09/2016,416085,5582.10,,REDACTED PERSONAL DATA,N/A,Corporate Resources and S151,Balance Sheet,Capital Exp-Non Council Assets,Grants,
http://statistics.data.gov.uk/search?search=E07000114,Thanet District Council,06/09/2016,415738,725.00,,Rolec Services Limited,ROL001,Operational Services,Revenue,"Equip, Furniture And Materials",Building Construction Material,
http://statistics.data.gov.uk/search?search=E07000114,Thanet District Council,06/09/2016,415730,383.62,,Southern Electric,SEL007,Operational Services,Revenue,Energy Costs,Utilities,
http://statistics.data.gov.uk/search?search=E07000114,Thanet District Council,06/09/2016,415731,-751.29,,Southern Electric,SEL007,Operational Services,Revenue,Energy Costs,Utilities,
http://statistics.data.gov.uk/search?search=E07000114,Thanet District Council,06/09/2016,415732,464.10,,Southern Electric,SEL007,Operational Services,Revenue,Energy Costs,Utilities,
http://statistics.data.gov.uk/search?search=E07000114,Thanet District Council,06/09/2016,415733,2153.40,,Southern Electric,SEL007,Community Services,Revenue,Energy Costs,Utilities,
http://statistics.data.gov.uk/search?search=E07000114,Thanet District Council,06/09/2016,415758,305.64,,Southern Electric,SEL007,Operational Services,Revenue,Energy Costs,Utilities,
http://statistics.data.gov.uk/search?search=E07000114,Thanet District Council,06/09/2016,415760,878.21,,Southern Electric,SEL007,Operational Services,Revenue,Energy Costs,Utilities,
http://statistics.data.gov.uk/search?search=E07000114,Thanet District Council,06/09/2016,415691,3586.11,,Southern Water,SWA001,Corporate Governance,Revenue,Water Services,Utilities,
http://statistics.data.gov.uk/search?search=E07000114,Thanet District Council,06/09/2016,415301,44436.47,,Standage & Co Limited,STA058,Corporate Resources and S151,Balance Sheet,Council Dwellings,Construction-Repair And Maint,
http://statistics.data.gov.uk/search?search=E07000114,Thanet District Council,06/09/2016,415302,48377.93,,Standage & Co Limited,STA058,Corporate Resources and S151,Balance Sheet,Council Dwellings,Construction-Repair And Maint,
http://statistics.data.gov.uk/search?search=E07000114,Thanet District Council,06/09/2016,415303,14192.88,,Standage & Co Limited,STA058,Corporate Resources and S151,Balance Sheet,Council Dwellings,Construction-Repair And Maint,
http://statistics.data.gov.uk/search?search=E07000114,Thanet District Council,06/09/2016,414373,25345.88,,Swale Heating Ltd,SWA006,Corporate Resources and S151,Balance Sheet,Repairs And Mtce Holding A/C,Building Construction Material,
http://statistics.data.gov.uk/search?search=E07000114,Thanet District Council,06/09/2016,415745,1448.98,,Terberg Matec Uk Limited,TER010,Operational Services,Revenue,Direct Transport Costs,Vehicle Management,
http://statistics.data.gov.uk/search?search=E07000114,Thanet District Council,06/09/2016,415685,898.90,,The Bell Brush Company,BEL018,Operational Services,Revenue,"Equip, Furniture And Materials",Cleaning And Janitorial,
http://statistics.data.gov.uk/search?search=E07000114,Thanet District Council,06/09/2016,414878,2470.83,,The Glenwood Hotel,GLE007,Community Services,Revenue,Services,Housing Management,
http://statistics.data.gov.uk/search?search=E07000114,Thanet District Council,06/09/2016,414879,2187.49,,The Glenwood Hotel,GLE007,Community Services,Revenue,Services,Housing Management,
http://statistics.data.gov.uk/search?search=E07000114,Thanet District Council,06/09/2016,414880,2866.67,,The Glenwood Hotel,GLE007,Community Services,Revenue,Services,Housing Management,
http://statistics.data.gov.uk/search?search=E07000114,Thanet District Council,06/09/2016,415391,3083.33,,The Glenwood Hotel,GLE007,Community Services,Revenue,Services,Housing Management,
http://statistics.data.gov.uk/search?search=E07000114,Thanet District Council,06/09/2016,415393,2191.65,,The Glenwood Hotel,GLE007,Community Services,Revenue,Services,Housing Management,
http://statistics.data.gov.uk/search?search=E07000114,Thanet District Council,06/09/2016,415359,712.50,,The Natural Solution Cleaning Co Ltd,NAT030,Operational Services,Revenue,"Repairs,  Alter & Mtce - Build",Cleaning And Janitorial,
http://statistics.data.gov.uk/search?search=E07000114,Thanet District Council,06/09/2016,414803,1515.42,,Tourism Works,TOU007,Community Services,Revenue,Services,Facilities And Management Serv,
http://statistics.data.gov.uk/search?search=E07000114,Thanet District Council,06/09/2016,414045,6425.00,,Uplands Engineering Ltd,UPL001,Operational Services,Revenue,"Equip, Furniture And Materials",Maritime Services,
http://statistics.data.gov.uk/search?search=E07000114,Thanet District Council,06/09/2016,414046,5840.00,,Uplands Engineering Ltd,UPL001,Operational Services,Revenue,"Equip, Furniture And Materials",Maritime Services,
http://statistics.data.gov.uk/search?search=E07000114,Thanet District Council,06/09/2016,415387,7032.72,,Vodafone Limited (Corporate),VOD001,Corporate Resources and S151,Balance Sheet,Mobile Phone Holding A/C,ICT,
http://statistics.data.gov.uk/search?search=E07000114,Thanet District Council,06/09/2016,415076,420.00,,Westward Ho Hotel,WES055,Community Services,Revenue,Services,Housing Management,
http://statistics.data.gov.uk/search?search=E07000114,Thanet District Council,09/09/2016,415954,1000.00,,Rachel E M Taylor,TAY022,Community Services,Revenue,Services,Arts And Leisure Services,
http://statistics.data.gov.uk/search?search=E07000114,Thanet District Council,09/09/2016,415955,1000.00,,Rachel E M Taylor,TAY022,Community Services,Revenue,Services,Arts And Leisure Services,
http://statistics.data.gov.uk/search?search=E07000114,Thanet District Council,13/09/2016,416575,467.01,,10 Dalby Square (Management) Ltd,10D001,Corporate Resources and S151,Balance Sheet,Capital Exp-Non Council Assets,Grants,
http://statistics.data.gov.uk/search?search=E07000114,Thanet District Council,13/09/2016,416576,467.01,,10 Dalby Square (Management) Ltd,10D001,Corporate Resources and S151,Balance Sheet,Capital Exp-Non Council Assets,Grants,
http://statistics.data.gov.uk/search?search=E07000114,Thanet District Council,13/09/2016,416577,467.01,,10 Dalby Square (Management) Ltd,10D001,Corporate Resources and S151,Balance Sheet,Capital Exp-Non Council Assets,Grants,
http://statistics.data.gov.uk/search?search=E07000114,Thanet District Council,13/09/2016,416578,467.01,,10 Dalby Square (Management) Ltd,10D001,Corporate Resources and S151,Balance Sheet,Capital Exp-Non Council Assets,Grants,
http://statistics.data.gov.uk/search?search=E07000114,Thanet District Council,13/09/2016,416579,467.01,,10 Dalby Square (Management) Ltd,10D001,Corporate Resources and S151,Balance Sheet,Capital Exp-Non Council Assets,Grants,
http://statistics.data.gov.uk/search?search=E07000114,Thanet District Council,13/09/2016,415864,6910.00,,Aecom Infastructure & Env Uk Ltd,AEC002,Corporate Resources and S151,Balance Sheet,Other Land And Buildings-Hra,Consultancy,
http://statistics.data.gov.uk/search?search=E07000114,Thanet District Council,13/09/2016,415865,5500.00,,Aecom Infastructure & Env Uk Ltd,AEC002,Corporate Resources and S151,Balance Sheet,Other Land And Buildings-Hra,Consultancy,
http://statistics.data.gov.uk/search?search=E07000114,Thanet District Council,13/09/2016,415975,782.50,,Andy Morris,MOR028,Community Services,Revenue,Services,Arts And Leisure Services,
http://statistics.data.gov.uk/search?search=E07000114,Thanet District Council,13/09/2016,416040,565.75,,Aqua Pure (South East) Limited,AQU007,Operational Services,Revenue,"Repairs,  Alter & Mtce - Build",Maritime Services,
http://statistics.data.gov.uk/search?search=E07000114,Thanet District Council,13/09/2016,416571,3750.00,,Ascendit Lifts Ltd,ASC001,Corporate Resources and S151,Balance Sheet,Capital Exp-Non Council Assets,Grants,
http://statistics.data.gov.uk/search?search=E07000114,Thanet District Council,13/09/2016,415907,338.80,,Aspli Safety Limited,ASP005,Operational Services,Revenue,"Equip, Furniture And Materials",Maritime Services,
http://statistics.data.gov.uk/search?search=E07000114,Thanet District Council,13/09/2016,416557,6028.95,,Bramling Construction Ltd,BRA020,Corporate Resources and S151,Balance Sheet,Capital Exp-Non Council Assets,Grants,
http://statistics.data.gov.uk/search?search=E07000114,Thanet District Council,13/09/2016,415335,1420.00,,Broadstairs Metal Craft,BRO058,Operational Services,Revenue,"Repairs,  Alter & Mtce - Build",Construction-Repair And Maint,
http://statistics.data.gov.uk/search?search=E07000114,Thanet District Council,13/09/2016,415265,1150.00,,Civica Uk Ltd,CIV003,East Kent Shared Services,Revenue,Communications & Computing,ICT,
http://statistics.data.gov.uk/search?search=E07000114,Thanet District Council,13/09/2016,416068,290.00,,Dat 1 Ltd,DAT009,Community Services,Revenue,"Equip, Furniture And Materials",Facilities And Management Serv,
http://statistics.data.gov.uk/search?search=E07000114,Thanet District Council,13/09/2016,416564,5200.00,,Dolphin Lifts Kent,DOL003,Corporate Resources and S151,Balance Sheet,Capital Exp-Non Council Assets,Grants,
http://statistics.data.gov.uk/search?search=E07000114,Thanet District Council,13/09/2016,416568,2700.00,,Dolphin Lifts Kent,DOL003,Corporate Resources and S151,Balance Sheet,Capital Exp-Non Council Assets,Grants,
http://statistics.data.gov.uk/search?search=E07000114,Thanet District Council,13/09/2016,416533,1375.00,,Dr Alexander Marshall,MAR100,Operational Services,Revenue,Services,Cemetery And Crematorium,
http://statistics.data.gov.uk/search?search=E07000114,Thanet District Council,13/09/2016,416534,1425.00,,Dr R K Chhabra,CHH001,Operational Services,Revenue,Services,Cemetery And Crematorium,
http://statistics.data.gov.uk/search?search=E07000114,Thanet District Council,13/09/2016,416056,796.00,,Estuary Services Ltd,EST002,Operational Services,Revenue,Cont Hire & Operating Lease,Maritime Services,
http://statistics.data.gov.uk/search?search=E07000114,Thanet District Council,13/09/2016,416250,481.64,,Evergreen Landscaping Gardening Ltd,EVE004,Corporate Governance,Revenue,Grounds Mtce Costs,Horticultural,
http://statistics.data.gov.uk/search?search=E07000114,Thanet District Council,13/09/2016,416554,1379.56,,Family Mosaic Housing,FAM001,Corporate Resources and S151,Balance Sheet,Capital Exp-Non Council Assets,Housing Management,
http://statistics.data.gov.uk/search?search=E07000114,Thanet District Council,13/09/2016,416559,810.86,,Family Mosaic Housing,FAM001,Corporate Resources and S151,Balance Sheet,Capital Exp-Non Council Assets,Housing Management,
http://statistics.data.gov.uk/search?search=E07000114,Thanet District Council,13/09/2016,416561,376.00,,Family Mosaic Housing,FAM001,Corporate Resources and S151,Balance Sheet,Capital Exp-Non Council Assets,Housing Management,
http://statistics.data.gov.uk/search?search=E07000114,Thanet District Council,13/09/2016,416566,1463.88,,Family Mosaic Housing,FAM001,Corporate Resources and S151,Balance Sheet,Capital Exp-Non Council Assets,Housing Management,
http://statistics.data.gov.uk/search?search=E07000114,Thanet District Council,13/09/2016,416569,1240.23,,Family Mosaic Housing,FAM001,Corporate Resources and S151,Balance Sheet,Capital Exp-Non Council Assets,Housing Management,
http://statistics.data.gov.uk/search?search=E07000114,Thanet District Council,13/09/2016,416573,755.51,,Family Mosaic Housing,FAM001,Corporate Resources and S151,Balance Sheet,Capital Exp-Non Council Assets,Housing Management,
http://statistics.data.gov.uk/search?search=E07000114,Thanet District Council,13/09/2016,415893,35948.22,,G & W Gardner Building Cont Ltd,GAR001,Corporate Resources and S151,Balance Sheet,Community Assets,Construction-Repair And Maint,
http://statistics.data.gov.uk/search?search=E07000114,Thanet District Council,13/09/2016,416176,796.80,,Gefco Uk Limited,GEF001,Operational Services,Revenue,Miscellaneous Expenses,Financial Services,
http://statistics.data.gov.uk/search?search=E07000114,Thanet District Council,13/09/2016,415918,1400.00,,Guardian News & Media Ltd,GUA004,Corporate Resources and S151,Revenue,Advertising Expenses,Facilities And Management Serv,
http://statistics.data.gov.uk/search?search=E07000114,Thanet District Council,13/09/2016,415908,900.00,,Gulliver'S Truck Hire Limited,GUL001,Operational Services,Revenue,Cont Hire & Operating Lease,Vehicle Management,
http://statistics.data.gov.uk/search?search=E07000114,Thanet District Council,13/09/2016,415909,660.00,,Gulliver'S Truck Hire Limited,GUL001,Operational Services,Revenue,Cont Hire & Operating Lease,Vehicle Management,
http://statistics.data.gov.uk/search?search=E07000114,Thanet District Council,13/09/2016,415992,470.00,,Hbinfo Limited,HBI001,East Kent Shared Services,Revenue,Expenses,Financial Services,
http://statistics.data.gov.uk/search?search=E07000114,Thanet District Council,13/09/2016,416027,380.00,,Hire Station Limited,HIR001,Community Services,Revenue,Services,Building Construction Material,
http://statistics.data.gov.uk/search?search=E07000114,Thanet District Council,13/09/2016,416070,3762.76,,Holbrook Revell Electrical Ltd,HOL015,Operational Services,Revenue,"Equip, Furniture And Materials",Building Construction Material,
http://statistics.data.gov.uk/search?search=E07000114,Thanet District Council,13/09/2016,415702,1553.64,,Hr Go (Kent) Ltd,HRG001,Operational Services,Revenue,Agency Staff,Human Resources,
http://statistics.data.gov.uk/search?search=E07000114,Thanet District Council,13/09/2016,416058,358.16,,Hr Go (Kent) Ltd,HRG001,Operational Services,Revenue,Agency Staff,Human Resources,
http://statistics.data.gov.uk/search?search=E07000114,Thanet District Council,13/09/2016,416062,529.47,,Hr Go (Kent) Ltd,HRG001,Community Services,Revenue,Agency Staff,Human Resources,
http://statistics.data.gov.uk/search?search=E07000114,Thanet District Council,13/09/2016,416064,1752.08,,Hr Go (Kent) Ltd,HRG001,Operational Services,Revenue,Agency Staff,Human Resources,
http://statistics.data.gov.uk/search?search=E07000114,Thanet District Council,13/09/2016,416067,427.72,,Hr Go (Kent) Ltd,HRG001,Corporate Governance,Revenue,Agency Staff,Human Resources,
http://statistics.data.gov.uk/search?search=E07000114,Thanet District Council,13/09/2016,416408,309.75,,Hr Go (Kent) Ltd,HRG001,Corporate Resources and S151,Revenue,Agency Staff,Human Resources,
http://statistics.data.gov.uk/search?search=E07000114,Thanet District Council,13/09/2016,416572,8485.95,,Hubbard & Houghton Construction Ltd,HUB003,Corporate Resources and S151,Balance Sheet,Capital Exp-Non Council Assets,Grants,
http://statistics.data.gov.uk/search?search=E07000114,Thanet District Council,13/09/2016,416488,750.00,,Imray Laurie Norie & Wilson Ltd,IMR001,Operational Services,Revenue,Miscellaneous Expenses,Facilities And Management Serv,
http://statistics.data.gov.uk/search?search=E07000114,Thanet District Council,13/09/2016,416012,8688.00,,J Rospo Building Contractors Ltd,ROS001,Corporate Governance,Revenue,"Repairs,  Alter & Mtce - Build",Construction-Repair And Maint,
http://statistics.data.gov.uk/search?search=E07000114,Thanet District Council,13/09/2016,415894,280.00,,Jik Software Ltd,JIK001,Corporate Resources and S151,Revenue,Advertising Expenses,Facilities And Management Serv,
http://statistics.data.gov.uk/search?search=E07000114,Thanet District Council,13/09/2016,416548,624.00,,John Gale,GAL001,Corporate Resources and S151,Balance Sheet,Capital Exp-Non Council Assets,Grants,
http://statistics.data.gov.uk/search?search=E07000114,Thanet District Council,13/09/2016,416550,656.20,,John Gale,GAL001,Corporate Resources and S151,Balance Sheet,Capital Exp-Non Council Assets,Grants,
http://statistics.data.gov.uk/search?search=E07000114,Thanet District Council,13/09/2016,416194,375.00,,John R Couzens,COU001,Operational Services,Revenue,"Repairs,  Alter & Mtce - Build",Construction-Repair And Maint,
http://statistics.data.gov.uk/search?search=E07000114,Thanet District Council,13/09/2016,416185,3788.28,,Kent County Council (Kcs),KCC003,Operational Services,Revenue,"Equip, Furniture And Materials",Facilities And Management Serv,
http://statistics.data.gov.uk/search?search=E07000114,Thanet District Council,13/09/2016,416187,2707.88,,Kent County Council (Kcs),KCC003,Operational Services,Revenue,"Equip, Furniture And Materials",Facilities And Management Serv,
http://statistics.data.gov.uk/search?search=E07000114,Thanet District Council,13/09/2016,416188,1686.94,,Kent County Council (Kcs),KCC003,Operational Services,Revenue,"Equip, Furniture And Materials",Facilities And Management Serv,
http://statistics.data.gov.uk/search?search=E07000114,Thanet District Council,13/09/2016,416265,3926.39,,Kent County Council (Kcs),KCC003,Operational Services,Revenue,"Equip, Furniture And Materials",Facilities And Management Serv,
http://statistics.data.gov.uk/search?search=E07000114,Thanet District Council,13/09/2016,416268,1358.88,,Kent County Council (Kcs),KCC003,Operational Services,Revenue,"Equip, Furniture And Materials",Facilities And Management Serv,
http://statistics.data.gov.uk/search?search=E07000114,Thanet District Council,13/09/2016,416273,3355.36,,Kent County Council (Kcs),KCC003,Operational Services,Revenue,"Equip, Furniture And Materials",Facilities And Management Serv,
http://statistics.data.gov.uk/search?search=E07000114,Thanet District Council,13/09/2016,416276,2615.76,,Kent County Council (Kcs),KCC003,Operational Services,Revenue,"Equip, Furniture And Materials",Facilities And Management Serv,
http://statistics.data.gov.uk/search?search=E07000114,Thanet District Council,13/09/2016,416277,2631.96,,Kent County Council (Kcs),KCC003,Operational Services,Revenue,"Equip, Furniture And Materials",Facilities And Management Serv,
http://statistics.data.gov.uk/search?search=E07000114,Thanet District Council,13/09/2016,415866,295.57,,Killgerm Chemicals Limited,KIL001,Operational Services,Revenue,"Equip, Furniture And Materials",Horticultural,
http://statistics.data.gov.uk/search?search=E07000114,Thanet District Council,13/09/2016,416182,800.00,,Km Media Group Limited,KMM001,Community Services,Revenue,Miscellaneous Expenses,Facilities And Management Serv,
http://statistics.data.gov.uk/search?search=E07000114,Thanet District Council,13/09/2016,416574,6295.89,,Lifestyle (Kent) Ltd,LIF008,Corporate Resources and S151,Balance Sheet,Capital Exp-Non Council Assets,Grants,
http://statistics.data.gov.uk/search?search=E07000114,Thanet District Council,13/09/2016,415710,285.25,,Lyreco Uk Limited,LYR001,Operational Services,Revenue,"Print, Stat And Gen Off Exps",Stationery,
http://statistics.data.gov.uk/search?search=E07000114,Thanet District Council,13/09/2016,416242,420.99,,Machine Mart Ltd,MAC003,Operational Services,Revenue,"Equip, Furniture And Materials",Vehicle Management,
http://statistics.data.gov.uk/search?search=E07000114,Thanet District Council,13/09/2016,415968,0.03,,Mears Ltd,MEA003,Community Services,Revenue,"Equip, Furniture And Materials",Construction-Repair And Maint,
http://statistics.data.gov.uk/search?search=E07000114,Thanet District Council,13/09/2016,415968,9823.93,,Mears Ltd,MEA003,Community Services,Revenue,"Repairs,  Alter & Mtce - Build",Construction-Repair And Maint,
http://statistics.data.gov.uk/search?search=E07000114,Thanet District Council,13/09/2016,416087,701.13,,Mems Power Generation,MEM001,Community Services,Revenue,Services,Arts And Leisure Services,
http://statistics.data.gov.uk/search?search=E07000114,Thanet District Council,13/09/2016,415944,430.00,,Michelle Williams,WIL064,Community Services,Revenue,Services,Arts And Leisure Services,
http://statistics.data.gov.uk/search?search=E07000114,Thanet District Council,13/09/2016,415715,1452.50,,Midland Software Limited,MID013,East Kent Shared Services,Revenue,Communications & Computing,ICT,
http://statistics.data.gov.uk/search?search=E07000114,Thanet District Council,13/09/2016,415716,7262.75,,Midland Software Limited,MID013,East Kent Shared Services,Revenue,Communications & Computing,ICT,
http://statistics.data.gov.uk/search?search=E07000114,Thanet District Council,13/09/2016,415945,542.30,,Morgan Jones Ltd,MOR001,Corporate Resources and S151,Revenue,Agency Staff,Human Resources,
http://statistics.data.gov.uk/search?search=E07000114,Thanet District Council,13/09/2016,415946,419.79,,Morgan Jones Ltd,MOR001,Chief Executive,Revenue,Agency Staff,Human Resources,
http://statistics.data.gov.uk/search?search=E07000114,Thanet District Council,13/09/2016,415948,306.18,,Morgan Jones Ltd,MOR001,Corporate Governance,Revenue,Agency Staff,Human Resources,
http://statistics.data.gov.uk/search?search=E07000114,Thanet District Council,13/09/2016,415949,460.69,,Morgan Jones Ltd,MOR001,Community Services,Revenue,Agency Staff,Human Resources,
http://statistics.data.gov.uk/search?search=E07000114,Thanet District Council,13/09/2016,415950,587.18,,Morgan Jones Ltd,MOR001,Corporate Resources and S151,Revenue,Agency Staff,Human Resources,
http://statistics.data.gov.uk/search?search=E07000114,Thanet District Council,13/09/2016,415915,947.21,,Ncc Mechanical Services Limited,NCC006,Corporate Governance,Revenue,"Repairs,  Alter & Mtce - Build",Construction-Repair And Maint,
http://statistics.data.gov.uk/search?search=E07000114,Thanet District Council,13/09/2016,415916,515.00,,Ncc Mechanical Services Limited,NCC006,Corporate Governance,Revenue,"Repairs,  Alter & Mtce - Build",Construction-Repair And Maint,
http://statistics.data.gov.uk/search?search=E07000114,Thanet District Council,13/09/2016,415917,1148.88,,Ncc Mechanical Services Limited,NCC006,Corporate Governance,Revenue,"Repairs,  Alter & Mtce - Build",Construction-Repair And Maint,
http://statistics.data.gov.uk/search?search=E07000114,Thanet District Council,13/09/2016,415677,875.96,,Ocs Group Uk Ltd T/A Fountains,OCS005,Corporate Governance,Revenue,Cleaning & Domestic Supplies,Cleaning And Janitorial,
http://statistics.data.gov.uk/search?search=E07000114,Thanet District Council,13/09/2016,415678,2132.58,,Ocs Group Uk Ltd T/A Fountains,OCS005,Operational Services,Revenue,Fixtures & Fittings,Cleaning And Janitorial,
http://statistics.data.gov.uk/search?search=E07000114,Thanet District Council,13/09/2016,416086,2915.00,,Oscar Associates (Uk) Limited,OSC001,East Kent Shared Services,Revenue,Agency Staff,ICT,
http://statistics.data.gov.uk/search?search=E07000114,Thanet District Council,13/09/2016,416544,20890.00,,Paramount Ind Property Services Llp,PAR074,Community Services,Revenue,Services,Housing Management,
http://statistics.data.gov.uk/search?search=E07000114,Thanet District Council,13/09/2016,415853,90.00,,Parkeon Limited,PAR063,Community Services,Revenue,"Equip, Furniture And Materials",Street And Traffic Management,
http://statistics.data.gov.uk/search?search=E07000114,Thanet District Council,13/09/2016,415853,1352.75,,Parkeon Limited,PAR063,Operational Services,Revenue,"Equip, Furniture And Materials",Street And Traffic Management,
http://statistics.data.gov.uk/search?search=E07000114,Thanet District Council,13/09/2016,416022,338.18,,Phoenix Software Ltd,PHO002,Community Services,Revenue,Communications & Computing,ICT,
http://statistics.data.gov.uk/search?search=E07000114,Thanet District Council,13/09/2016,416186,1786.00,,Pioneering Play Limited,PIO002,Operational Services,Revenue,"Repairs,  Alter & Mtce - Build",Sports Playground Equipment,
http://statistics.data.gov.uk/search?search=E07000114,Thanet District Council,13/09/2016,415717,1456.00,,Portakabin Ltd,POR001,Operational Services,Revenue,"Equip, Furniture And Materials",Facilities And Management Serv,
http://statistics.data.gov.uk/search?search=E07000114,Thanet District Council,13/09/2016,415941,876.00,,Profile Security Services Limited,PRO018,Operational Services,Revenue,Services,Facilities And Management Serv,
http://statistics.data.gov.uk/search?search=E07000114,Thanet District Council,13/09/2016,415991,657.90,,Puls Global Ltd,PUL006,Operational Services,Revenue,"Equip, Furniture And Materials",Facilities And Management Serv,
http://statistics.data.gov.uk/search?search=E07000114,Thanet District Council,13/09/2016,415940,612.50,,R Cannon,CAN007,Operational Services,Revenue,Services,Maritime Services,
http://statistics.data.gov.uk/search?search=E07000114,Thanet District Council,13/09/2016,416387,332.50,,R Cannon,CAN007,Operational Services,Revenue,Services,Maritime Services,
http://statistics.data.gov.uk/search?search=E07000114,Thanet District Council,13/09/2016,415896,1000.00,,Rachel E M Taylor,TAY022,Community Services,Revenue,Services,Arts And Leisure Services,
http://statistics.data.gov.uk/search?search=E07000114,Thanet District Council,13/09/2016,416529,2602.61,,REDACTED PERSONAL DATA,N/A,Corporate Resources and S151,Balance Sheet,Capital Exp-Non Council Assets,Non Trade Payee,
http://statistics.data.gov.uk/search?search=E07000114,Thanet District Council,13/09/2016,415744,2410.97,,Royal Mail,ROY004,Corporate Governance,Revenue,Communications & Computing,Mail Services,
http://statistics.data.gov.uk/search?search=E07000114,Thanet District Council,13/09/2016,415933,13803.71,,Sea Lift Diving Ltd,SEA007,Operational Services,Revenue,"Repairs,  Alter & Mtce - Build",Maritime Services,
http://statistics.data.gov.uk/search?search=E07000114,Thanet District Council,13/09/2016,415590,1495.00,,Sh1 Solution Ltd,SH1001,Operational Services,Revenue,"Repairs,  Alter & Mtce - Build",Maritime Services,
http://statistics.data.gov.uk/search?search=E07000114,Thanet District Council,13/09/2016,415938,911.00,,Smye Rumsby,SMY001,Operational Services,Revenue,"Equip, Furniture And Materials",ICT,
http://statistics.data.gov.uk/search?search=E07000114,Thanet District Council,13/09/2016,416549,6240.00,,South East Building Company Limited,SEB001,Corporate Resources and S151,Balance Sheet,Capital Exp-Non Council Assets,Grants,
http://statistics.data.gov.uk/search?search=E07000114,Thanet District Council,13/09/2016,415412,340.00,,Specsavers Optical Superstores Ltd,SPE025,Corporate Resources and S151,Revenue,Employee Related Schemes,Healthcare,
http://statistics.data.gov.uk/search?search=E07000114,Thanet District Council,13/09/2016,415175,528.00,,Stagecoach Services Limited,STA023,Corporate Resources and S151,Balance Sheet,Staff Bus Permits Holding A/C,Public Transport,
http://statistics.data.gov.uk/search?search=E07000114,Thanet District Council,13/09/2016,415295,28211.74,,Standage & Co Limited,STA058,Corporate Resources and S151,Balance Sheet,Council Dwellings,Construction-Repair And Maint,
http://statistics.data.gov.uk/search?search=E07000114,Thanet District Council,13/09/2016,415296,50270.57,,Standage & Co Limited,STA058,Corporate Resources and S151,Balance Sheet,Council Dwellings,Construction-Repair And Maint,
http://statistics.data.gov.uk/search?search=E07000114,Thanet District Council,13/09/2016,415297,47763.09,,Standage & Co Limited,STA058,Corporate Resources and S151,Balance Sheet,Council Dwellings,Construction-Repair And Maint,
http://statistics.data.gov.uk/search?search=E07000114,Thanet District Council,13/09/2016,415298,65801.57,,Standage & Co Limited,STA058,Corporate Resources and S151,Balance Sheet,Council Dwellings,Construction-Repair And Maint,
http://statistics.data.gov.uk/search?search=E07000114,Thanet District Council,13/09/2016,415299,2159.81,,Standage & Co Limited,STA058,Corporate Resources and S151,Balance Sheet,Council Dwellings,Construction-Repair And Maint,
http://statistics.data.gov.uk/search?search=E07000114,Thanet District Council,13/09/2016,415300,28736.98,,Standage & Co Limited,STA058,Corporate Resources and S151,Balance Sheet,Council Dwellings,Construction-Repair And Maint,
http://statistics.data.gov.uk/search?search=E07000114,Thanet District Council,13/09/2016,416191,10260.00,,Straight Manufacturing Limited,STR038,Operational Services,Revenue,"Equip, Furniture And Materials",Environmental Services,
http://statistics.data.gov.uk/search?search=E07000114,Thanet District Council,13/09/2016,414438,1393.97,,Swale Heating Ltd,SWA006,Corporate Resources and S151,Balance Sheet,Repairs And Mtce Holding A/C,Building Construction Material,
http://statistics.data.gov.uk/search?search=E07000114,Thanet District Council,13/09/2016,415990,1565.27,,Tfa Fuel Services Ltd,TFA003,Operational Services,Revenue,"Equip, Furniture And Materials",Utilities,
http://statistics.data.gov.uk/search?search=E07000114,Thanet District Council,13/09/2016,416280,2600.00,,Thanet Nursery Project Limited,TNU001,Corporate Governance,Revenue,Rents,Facilities And Management Serv,
http://statistics.data.gov.uk/search?search=E07000114,Thanet District Council,13/09/2016,415568,3108.33,,The Glenwood Hotel,GLE007,Community Services,Revenue,Services,Housing Management,
http://statistics.data.gov.uk/search?search=E07000114,Thanet District Council,13/09/2016,415848,2974.99,,The Glenwood Hotel,GLE007,Community Services,Revenue,Services,Housing Management,
http://statistics.data.gov.uk/search?search=E07000114,Thanet District Council,13/09/2016,415850,2520.82,,The Glenwood Hotel,GLE007,Community Services,Revenue,Services,Housing Management,
http://statistics.data.gov.uk/search?search=E07000114,Thanet District Council,13/09/2016,415851,500.00,,The Glenwood Hotel,GLE007,Community Services,Revenue,Services,Housing Management,
http://statistics.data.gov.uk/search?search=E07000114,Thanet District Council,13/09/2016,415914,990.00,,Toplevel Computing Ltd,TOP007,Corporate Resources and S151,Revenue,Communications & Computing,ICT,
http://statistics.data.gov.uk/search?search=E07000114,Thanet District Council,13/09/2016,416551,6562.00,,Trueden Disability Adaptations Ltd,TRU012,Corporate Resources and S151,Balance Sheet,Capital Exp-Non Council Assets,Grants,
http://statistics.data.gov.uk/search?search=E07000114,Thanet District Council,13/09/2016,416553,12406.34,,Trueden Disability Adaptations Ltd,TRU012,Corporate Resources and S151,Balance Sheet,Capital Exp-Non Council Assets,Grants,
http://statistics.data.gov.uk/search?search=E07000114,Thanet District Council,13/09/2016,413712,360.00,,Uplands Engineering Ltd,UPL001,Operational Services,Revenue,"Repairs,  Alter & Mtce - Build",Maritime Services,
http://statistics.data.gov.uk/search?search=E07000114,Thanet District Council,13/09/2016,415546,420.00,,Westward Ho Hotel,WES055,Community Services,Revenue,Services,Housing Management,
http://statistics.data.gov.uk/search?search=E07000114,Thanet District Council,13/09/2016,415881,420.00,,Westward Ho Hotel,WES055,Community Services,Revenue,Services,Housing Management,
http://statistics.data.gov.uk/search?search=E07000114,Thanet District Council,15/09/2016,416347,1645.60,,Advanced Business Solutions,COA011,Corporate Resources and S151,Revenue,Communications & Computing,ICT,
http://statistics.data.gov.uk/search?search=E07000114,Thanet District Council,15/09/2016,416035,484.00,,All Access Ltd,ALL031,Community Services,Revenue,Services,Building Construction Material,
http://statistics.data.gov.uk/search?search=E07000114,Thanet District Council,15/09/2016,415627,5896.28,,Burgess Marine Ltd,BUR017,Operational Services,Revenue,"Repairs,  Alter & Mtce - Build",Maritime Services,
http://statistics.data.gov.uk/search?search=E07000114,Thanet District Council,15/09/2016,416322,1427.97,,Canon (Uk) Ltd,CAN021,Corporate Governance,Revenue,"Equip, Furniture And Materials",Facilities And Management Serv,
http://statistics.data.gov.uk/search?search=E07000114,Thanet District Council,15/09/2016,416323,328.89,,Canon (Uk) Ltd,CAN021,Community Services,Revenue,Services,Facilities And Management Serv,
http://statistics.data.gov.uk/search?search=E07000114,Thanet District Council,15/09/2016,416545,10800.00,,Capita Resourcing Ltd,CAP007,Corporate Governance,Revenue,Agency Staff,Human Resources,
http://statistics.data.gov.uk/search?search=E07000114,Thanet District Council,15/09/2016,416336,3206.25,,Clarion Events Limited,CLA041,Operational Services,Revenue,Miscellaneous Expenses,Maritime Services,
http://statistics.data.gov.uk/search?search=E07000114,Thanet District Council,15/09/2016,416203,494.27,,Cobalt Telephone Technologies Ltd,COB002,Operational Services,Revenue,Services,ICT,
http://statistics.data.gov.uk/search?search=E07000114,Thanet District Council,15/09/2016,415904,680.00,,Daniels Healthcare Limited,DAN014,Operational Services,Revenue,"Equip, Furniture And Materials",Healthcare,
http://statistics.data.gov.uk/search?search=E07000114,Thanet District Council,15/09/2016,415628,2541.00,,Dcb (Kent) Ltd,DCB001,Corporate Resources and S151,Balance Sheet,Repairs And Mtce Holding A/C,Construction-Repair And Maint,
http://statistics.data.gov.uk/search?search=E07000114,Thanet District Council,15/09/2016,415629,7113.08,,Dcb (Kent) Ltd,DCB001,Corporate Resources and S151,Balance Sheet,Repairs And Mtce Holding A/C,Construction-Repair And Maint,
http://statistics.data.gov.uk/search?search=E07000114,Thanet District Council,15/09/2016,415630,47369.61,,Dcb (Kent) Ltd,DCB001,Corporate Resources and S151,Balance Sheet,Repairs And Mtce Holding A/C,Construction-Repair And Maint,
http://statistics.data.gov.uk/search?search=E07000114,Thanet District Council,15/09/2016,415921,386.93,,Dennis Eagle Ltd,DEN005,Operational Services,Revenue,Direct Transport Costs,Vehicle Management,
http://statistics.data.gov.uk/search?search=E07000114,Thanet District Council,15/09/2016,415971,386.93,,Dennis Eagle Ltd,DEN005,Operational Services,Revenue,Direct Transport Costs,Vehicle Management,
http://statistics.data.gov.uk/search?search=E07000114,Thanet District Council,15/09/2016,416052,403.99,,Dennis Eagle Ltd,DEN005,Operational Services,Revenue,Direct Transport Costs,Vehicle Management,
http://statistics.data.gov.uk/search?search=E07000114,Thanet District Council,15/09/2016,416440,23557.88,,Dover District Council,DOV001,East Kent Shared Services,Revenue,Services,Various Cats - Public Sector,
http://statistics.data.gov.uk/search?search=E07000114,Thanet District Council,15/09/2016,416443,250000.00,,Dover District Council,DOV001,East Kent Shared Services,Revenue,Grants & Subscriptions,Various Cats - Public Sector,
http://statistics.data.gov.uk/search?search=E07000114,Thanet District Council,15/09/2016,416752,14954.96,,Dtz Debenham Tie Leung Limited,DTZ002,Corporate Resources and S151,Balance Sheet,Other Land And Buildings-Hra,Legal Services,
http://statistics.data.gov.uk/search?search=E07000114,Thanet District Council,15/09/2016,416753,22227.48,,Dtz Debenham Tie Leung Limited,DTZ002,Corporate Resources and S151,Balance Sheet,Other Land And Buildings-Hra,Legal Services,
http://statistics.data.gov.uk/search?search=E07000114,Thanet District Council,15/09/2016,416754,10235.16,,Dtz Debenham Tie Leung Limited,DTZ002,Corporate Resources and S151,Balance Sheet,Other Land And Buildings-Hra,Legal Services,
http://statistics.data.gov.uk/search?search=E07000114,Thanet District Council,15/09/2016,416025,264.00,,East Kent Hose,EKH004,Operational Services,Revenue,Direct Transport Costs,Vehicle Management,
http://statistics.data.gov.uk/search?search=E07000114,Thanet District Council,15/09/2016,416373,879.96,,Eks Office Equipment,EKS004,Corporate Governance,Revenue,"Repairs,  Alter & Mtce - Build",Furniture And Soft Furnishings,
http://statistics.data.gov.uk/search?search=E07000114,Thanet District Council,15/09/2016,416015,4293.36,,First Fence Ltd,FIR014,Operational Services,Revenue,"Equip, Furniture And Materials",Building Construction Material,
http://statistics.data.gov.uk/search?search=E07000114,Thanet District Council,15/09/2016,416015,280.00,,First Fence Ltd,FIR014,Operational Services,Revenue,"Repairs,  Alter & Mtce - Build",Building Construction Material,
http://statistics.data.gov.uk/search?search=E07000114,Thanet District Council,15/09/2016,415897,664.00,,Gas Contract Services Ltd,GAS004,Corporate Resources and S151,Balance Sheet,Repairs And Mtce Holding A/C,Construction-Repair And Maint,
http://statistics.data.gov.uk/search?search=E07000114,Thanet District Council,15/09/2016,416324,257.10,,Gb Sport & Leisure Uk Ltd,GBS002,Operational Services,Revenue,"Repairs,  Alter & Mtce - Build",Sports Playground Equipment,
http://statistics.data.gov.uk/search?search=E07000114,Thanet District Council,15/09/2016,416207,945.00,,Geesink Norba Ltd,GEE006,Operational Services,Revenue,Direct Transport Costs,Vehicle Management,
http://statistics.data.gov.uk/search?search=E07000114,Thanet District Council,15/09/2016,416190,900.00,,Gulliver'S Truck Hire Limited,GUL001,Operational Services,Revenue,Cont Hire & Operating Lease,Vehicle Management,
http://statistics.data.gov.uk/search?search=E07000114,Thanet District Council,15/09/2016,415261,14339.00,,Gva Grimley Limited,GVA001,Community Services,Revenue,Services,Consultancy,
http://statistics.data.gov.uk/search?search=E07000114,Thanet District Council,15/09/2016,415360,260.00,,Health Solutions Kent Limited,HEA019,Community Services,Revenue,Services,Arts And Leisure Services,
http://statistics.data.gov.uk/search?search=E07000114,Thanet District Council,15/09/2016,416427,650.00,,Hi Way Services Ltd,HIW002,Operational Services,Revenue,"Repairs,  Alter & Mtce - Build",Highway Equipment And Material,
http://statistics.data.gov.uk/search?search=E07000114,Thanet District Council,15/09/2016,415863,510.00,,Holt & Wotton Ltd,HOL001,Corporate Resources and S151,Balance Sheet,Repairs And Mtce Holding A/C,Building Construction Material,
http://statistics.data.gov.uk/search?search=E07000114,Thanet District Council,15/09/2016,416057,785.88,,Hr Go (Kent) Ltd,HRG001,Operational Services,Revenue,Agency Staff,Human Resources,
http://statistics.data.gov.uk/search?search=E07000114,Thanet District Council,15/09/2016,416059,1191.34,,Hr Go (Kent) Ltd,HRG001,Operational Services,Revenue,Agency Staff,Human Resources,
http://statistics.data.gov.uk/search?search=E07000114,Thanet District Council,15/09/2016,416061,1643.17,,Hr Go (Kent) Ltd,HRG001,Operational Services,Revenue,Agency Staff,Human Resources,
http://statistics.data.gov.uk/search?search=E07000114,Thanet District Council,15/09/2016,416063,1460.43,,Hr Go (Kent) Ltd,HRG001,Operational Services,Revenue,Agency Staff,Human Resources,
http://statistics.data.gov.uk/search?search=E07000114,Thanet District Council,15/09/2016,416237,8330.16,,Hr Go (Kent) Ltd,HRG001,Operational Services,Revenue,Agency Staff,Human Resources,
http://statistics.data.gov.uk/search?search=E07000114,Thanet District Council,15/09/2016,416239,14578.01,,Hr Go (Kent) Ltd,HRG001,Operational Services,Revenue,Agency Staff,Human Resources,
http://statistics.data.gov.uk/search?search=E07000114,Thanet District Council,15/09/2016,416399,438.74,,Hr Go (Kent) Ltd,HRG001,Community Services,Revenue,Agency Staff,Human Resources,
http://statistics.data.gov.uk/search?search=E07000114,Thanet District Council,15/09/2016,416405,317.90,,Hr Go (Kent) Ltd,HRG001,Corporate Governance,Revenue,Agency Staff,Human Resources,
http://statistics.data.gov.uk/search?search=E07000114,Thanet District Council,15/09/2016,415746,888.00,,John Reeve (Plant Hire) Ltd,REE013,Operational Services,Revenue,Cont Hire & Operating Lease,Vehicle Management,
http://statistics.data.gov.uk/search?search=E07000114,Thanet District Council,15/09/2016,415859,869.50,,John Reeve (Plant Hire) Ltd,REE013,Operational Services,Revenue,Cont Hire & Operating Lease,Vehicle Management,
http://statistics.data.gov.uk/search?search=E07000114,Thanet District Council,15/09/2016,415860,851.00,,John Reeve (Plant Hire) Ltd,REE013,Operational Services,Revenue,Cont Hire & Operating Lease,Vehicle Management,
http://statistics.data.gov.uk/search?search=E07000114,Thanet District Council,15/09/2016,416073,1267.90,,Kenhire Limited,KEN042,Operational Services,Revenue,Cont Hire & Operating Lease,Vehicle Management,
http://statistics.data.gov.uk/search?search=E07000114,Thanet District Council,15/09/2016,416074,1267.90,,Kenhire Limited,KEN042,Operational Services,Revenue,Cont Hire & Operating Lease,Vehicle Management,
http://statistics.data.gov.uk/search?search=E07000114,Thanet District Council,15/09/2016,416495,358.43,,Kent County Council (Kcs),KCC003,Community Services,Revenue,Energy Costs,Facilities And Management Serv,
http://statistics.data.gov.uk/search?search=E07000114,Thanet District Council,15/09/2016,416496,272.56,,Kent County Council (Kcs),KCC003,Corporate Governance,Revenue,Energy Costs,Facilities And Management Serv,
http://statistics.data.gov.uk/search?search=E07000114,Thanet District Council,15/09/2016,416499,408.15,,Kent County Council (Kcs),KCC003,Corporate Governance,Revenue,Energy Costs,Facilities And Management Serv,
http://statistics.data.gov.uk/search?search=E07000114,Thanet District Council,15/09/2016,416500,1758.83,,Kent County Council (Kcs),KCC003,Operational Services,Revenue,Energy Costs,Facilities And Management Serv,
http://statistics.data.gov.uk/search?search=E07000114,Thanet District Council,15/09/2016,416337,5789.85,,Kingdom Security Limited,KIN039,Operational Services,Revenue,Services,Street And Traffic Management,
http://statistics.data.gov.uk/search?search=E07000114,Thanet District Council,15/09/2016,416308,4140.58,,Level 3 Communications (Uk) Ltd,LEV005,Corporate Resources and S151,Balance Sheet,Telephone Holding Account,ICT,
http://statistics.data.gov.uk/search?search=E07000114,Thanet District Council,15/09/2016,416378,376.00,,Lyreco Uk Limited,LYR001,Corporate Governance,Revenue,"Print, Stat And Gen Off Exps",Stationery,
http://statistics.data.gov.uk/search?search=E07000114,Thanet District Council,15/09/2016,415925,282.30,,Mears Ltd,MEA003,Operational Services,Revenue,"Repairs,  Alter & Mtce - Build",Construction-Repair And Maint,
http://statistics.data.gov.uk/search?search=E07000114,Thanet District Council,15/09/2016,415928,284.29,,Mears Ltd,MEA003,Operational Services,Revenue,"Repairs,  Alter & Mtce - Build",Construction-Repair And Maint,
http://statistics.data.gov.uk/search?search=E07000114,Thanet District Council,15/09/2016,415929,493.19,,Mears Ltd,MEA003,Operational Services,Revenue,"Repairs,  Alter & Mtce - Build",Construction-Repair And Maint,
http://statistics.data.gov.uk/search?search=E07000114,Thanet District Council,15/09/2016,415932,496.91,,Mears Ltd,MEA003,Operational Services,Revenue,"Repairs,  Alter & Mtce - Build",Construction-Repair And Maint,
http://statistics.data.gov.uk/search?search=E07000114,Thanet District Council,15/09/2016,415956,4830.00,,Mears Ltd,MEA003,Corporate Resources and S151,Balance Sheet,Repairs And Mtce Holding A/C,Construction-Repair And Maint,
http://statistics.data.gov.uk/search?search=E07000114,Thanet District Council,15/09/2016,415957,680.22,,Mears Ltd,MEA003,Corporate Resources and S151,Balance Sheet,Repairs And Mtce Holding A/C,Construction-Repair And Maint,
http://statistics.data.gov.uk/search?search=E07000114,Thanet District Council,15/09/2016,416329,1067.66,,Mears Ltd,MEA003,Operational Services,Revenue,"Repairs,  Alter & Mtce - Build",Construction-Repair And Maint,
http://statistics.data.gov.uk/search?search=E07000114,Thanet District Council,15/09/2016,416510,381.75,,Mears Ltd,MEA003,Corporate Governance,Revenue,"Repairs,  Alter & Mtce - Build",Construction-Repair And Maint,
http://statistics.data.gov.uk/search?search=E07000114,Thanet District Council,15/09/2016,416236,628.26,,Metric Group Ltd,MET001,Operational Services,Revenue,Communications & Computing,Street And Traffic Management,
http://statistics.data.gov.uk/search?search=E07000114,Thanet District Council,15/09/2016,416509,1853.00,,Michael Page Int Recruitment Ltd,PAG008,Corporate Resources and S151,Revenue,Agency Staff,Human Resources,
http://statistics.data.gov.uk/search?search=E07000114,Thanet District Council,15/09/2016,415585,314.16,,Morgan Jones Ltd,MOR001,Corporate Governance,Revenue,Agency Staff,Human Resources,
http://statistics.data.gov.uk/search?search=E07000114,Thanet District Council,15/09/2016,416446,319.46,,Neopost Ltd,NEO003,Corporate Governance,Revenue,"Equip, Furniture And Materials",Mail Services,
http://statistics.data.gov.uk/search?search=E07000114,Thanet District Council,15/09/2016,416521,377.52,,Npower Direct Limited,NPO003,Community Services,Revenue,Energy Costs,Utilities,
http://statistics.data.gov.uk/search?search=E07000114,Thanet District Council,15/09/2016,415993,1659.57,,Ocs Group Uk Ltd T/A Fountains,OCS005,Corporate Resources and S151,Balance Sheet,Repairs And Mtce Holding A/C,Cleaning And Janitorial,
http://statistics.data.gov.uk/search?search=E07000114,Thanet District Council,15/09/2016,416205,312.52,,Orbis Protect Limited,ORB009,Corporate Governance,Revenue,Services,Facilities And Management Serv,
http://statistics.data.gov.uk/search?search=E07000114,Thanet District Council,15/09/2016,416202,1540.00,,Ovenden Plant Hire Ltd,OVE002,Operational Services,Revenue,Cont Hire & Operating Lease,Vehicle Management,
http://statistics.data.gov.uk/search?search=E07000114,Thanet District Council,15/09/2016,416486,4944.45,,Profile Security Services Limited,PRO018,Operational Services,Revenue,Services,Facilities And Management Serv,
http://statistics.data.gov.uk/search?search=E07000114,Thanet District Council,15/09/2016,415862,1575.00,,R Cannon,CAN007,Operational Services,Revenue,Services,Maritime Services,
http://statistics.data.gov.uk/search?search=E07000114,Thanet District Council,15/09/2016,416395,1750.00,,Reed Business Information Ltd,REE002,Corporate Governance,Revenue,Advertising Expenses,Facilities And Management Serv,
http://statistics.data.gov.uk/search?search=E07000114,Thanet District Council,15/09/2016,416482,380.00,,Rigby Taylor Ltd,RIG002,Operational Services,Revenue,"Equip, Furniture And Materials",Horticultural,
http://statistics.data.gov.uk/search?search=E07000114,Thanet District Council,15/09/2016,416196,1000.00,,Rose Grogan,GRO024,Corporate Governance,Revenue,Services,Legal Services,
http://statistics.data.gov.uk/search?search=E07000114,Thanet District Council,15/09/2016,415937,395.80,,Signway Supplies (Datchet) Limited,SIG013,Operational Services,Revenue,"Repairs,  Alter & Mtce - Build",Highway Equipment And Material,
http://statistics.data.gov.uk/search?search=E07000114,Thanet District Council,15/09/2016,416233,-283.86,,Southern Electric,SEL007,Community Services,Revenue,Energy Costs,Utilities,
http://statistics.data.gov.uk/search?search=E07000114,Thanet District Council,15/09/2016,416235,283.40,,Southern Electric,SEL007,Operational Services,Revenue,Energy Costs,Utilities,
http://statistics.data.gov.uk/search?search=E07000114,Thanet District Council,15/09/2016,416451,2367.07,,Southern Electric,SEL007,Community Services,Revenue,Energy Costs,Utilities,
http://statistics.data.gov.uk/search?search=E07000114,Thanet District Council,15/09/2016,416525,2510.95,,Southern Electric,SEL007,Community Services,Revenue,Energy Costs,Utilities,
http://statistics.data.gov.uk/search?search=E07000114,Thanet District Council,15/09/2016,416526,912.05,,Southern Electric,SEL007,Community Services,Revenue,Energy Costs,Utilities,
http://statistics.data.gov.uk/search?search=E07000114,Thanet District Council,15/09/2016,416531,799.12,,Southern Electric,SEL007,Community Services,Revenue,Energy Costs,Utilities,
http://statistics.data.gov.uk/search?search=E07000114,Thanet District Council,15/09/2016,416090,604.12,,Southern Water,SWA001,Operational Services,Revenue,Water Services,Utilities,
http://statistics.data.gov.uk/search?search=E07000114,Thanet District Council,15/09/2016,416419,1665.12,,Southern Water,SWA001,Operational Services,Revenue,Water Services,Utilities,
http://statistics.data.gov.uk/search?search=E07000114,Thanet District Council,15/09/2016,416420,434.31,,Southern Water,SWA001,Operational Services,Revenue,Water Services,Utilities,
http://statistics.data.gov.uk/search?search=E07000114,Thanet District Council,15/09/2016,416421,1636.68,,Southern Water,SWA001,Operational Services,Revenue,Water Services,Utilities,
http://statistics.data.gov.uk/search?search=E07000114,Thanet District Council,15/09/2016,416460,2344.24,,Southern Water,SWA001,Operational Services,Revenue,Water Services,Utilities,
http://statistics.data.gov.uk/search?search=E07000114,Thanet District Council,15/09/2016,416461,419.27,,Southern Water,SWA001,Corporate Governance,Revenue,Water Services,Utilities,
http://statistics.data.gov.uk/search?search=E07000114,Thanet District Council,15/09/2016,416461,419.27,,Southern Water,SWA001,Operational Services,Revenue,Water Services,Utilities,
http://statistics.data.gov.uk/search?search=E07000114,Thanet District Council,15/09/2016,416462,1582.70,,Southern Water,SWA001,Operational Services,Revenue,Water Services,Utilities,
http://statistics.data.gov.uk/search?search=E07000114,Thanet District Council,15/09/2016,415913,303.30,,Sparshatts Of Kent Ltd,SPA008,Operational Services,Revenue,Direct Transport Costs,Vehicle Management,
http://statistics.data.gov.uk/search?search=E07000114,Thanet District Council,15/09/2016,416439,480.00,,"St John, Kent",STJ002,Community Services,Revenue,Services,Arts And Leisure Services,
http://statistics.data.gov.uk/search?search=E07000114,Thanet District Council,15/09/2016,416430,528.00,,Stagecoach Services Limited,STA023,Corporate Resources and S151,Balance Sheet,Staff Bus Permits Holding A/C,Public Transport,
http://statistics.data.gov.uk/search?search=E07000114,Thanet District Council,15/09/2016,416484,490.00,,Stagecoach Services Limited,STA023,Corporate Resources and S151,Balance Sheet,Staff Bus Permits Holding A/C,Public Transport,
http://statistics.data.gov.uk/search?search=E07000114,Thanet District Council,15/09/2016,415304,12196.57,,Standage & Co Limited,STA058,Corporate Resources and S151,Balance Sheet,Council Dwellings,Construction-Repair And Maint,
http://statistics.data.gov.uk/search?search=E07000114,Thanet District Council,15/09/2016,414376,975.00,,Swale Heating Ltd,SWA006,Corporate Resources and S151,Balance Sheet,Repairs And Mtce Holding A/C,Building Construction Material,
http://statistics.data.gov.uk/search?search=E07000114,Thanet District Council,15/09/2016,416306,314.10,,Thanet Waste Services Ltd,TWA001,Operational Services,Revenue,Private Contractors,Environmental Services,
http://statistics.data.gov.uk/search?search=E07000114,Thanet District Council,15/09/2016,416480,1850.00,,Threshold Studios Limited,THR002,Community Services,Revenue,Services,Arts And Leisure Services,
http://statistics.data.gov.uk/search?search=E07000114,Thanet District Council,15/09/2016,416084,11500.36,,Town & Country Cleaners Ltd,TOW002,Corporate Resources and S151,Balance Sheet,Repairs And Mtce Holding A/C,Cleaning And Janitorial,
http://statistics.data.gov.uk/search?search=E07000114,Thanet District Council,15/09/2016,416749,2130.84,,Turley Associates Ltd,TUR028,Corporate Resources and S151,Balance Sheet,Other Land And Buildings-Hra,Consultancy,
http://statistics.data.gov.uk/search?search=E07000114,Thanet District Council,15/09/2016,416750,2214.00,,Turley Associates Ltd,TUR028,Corporate Resources and S151,Balance Sheet,Other Land And Buildings-Hra,Consultancy,
http://statistics.data.gov.uk/search?search=E07000114,Thanet District Council,15/09/2016,416751,2259.00,,Turley Associates Ltd,TUR028,Corporate Resources and S151,Balance Sheet,Other Land And Buildings-Hra,Consultancy,
http://statistics.data.gov.uk/search?search=E07000114,Thanet District Council,15/09/2016,416418,3268.20,,Uk Power Networks Services (Comm)Ltd,UKP003,Operational Services,Revenue,Energy Costs,Utilities,
http://statistics.data.gov.uk/search?search=E07000114,Thanet District Council,15/09/2016,416014,900.00,,Urban Surveying & Design Ltd,URB005,Corporate Resources and S151,Balance Sheet,Community Assets,Consultancy,
http://statistics.data.gov.uk/search?search=E07000114,Thanet District Council,19/09/2016,N/A,369.01,,REDACTED PERSONAL DATA,N/A,Operational Services,Revenue,Car Allowances,Non Trade Payee,
http://statistics.data.gov.uk/search?search=E07000114,Thanet District Council,19/09/2016,N/A,258.46,,REDACTED PERSONAL DATA,N/A,Operational Services,Revenue,Car Allowances,Non Trade Payee,
http://statistics.data.gov.uk/search?search=E07000114,Thanet District Council,19/09/2016,N/A,647.71,,REDACTED PERSONAL DATA,N/A,East Kent Shared Services,Revenue,Car Allowances,Non Trade Payee,
http://statistics.data.gov.uk/search?search=E07000114,Thanet District Council,19/09/2016,N/A,274.03,,REDACTED PERSONAL DATA,N/A,East Kent Shared Services,Revenue,Car Allowances,Non Trade Payee,
http://statistics.data.gov.uk/search?search=E07000114,Thanet District Council,19/09/2016,N/A,254.57,,REDACTED PERSONAL DATA,N/A,East Kent Shared Services,Revenue,Car Allowances,Non Trade Payee,
http://statistics.data.gov.uk/search?search=E07000114,Thanet District Council,20/09/2016,416354,2719.24,,Ats Euromaster Ltd,ATS002,Operational Services,Revenue,Direct Transport Costs,Vehicle Management,
http://statistics.data.gov.uk/search?search=E07000114,Thanet District Council,20/09/2016,417064,90740.53,,Axis Europe Plc,AXI001,Corporate Resources and S151,Balance Sheet,Council Dwellings,Construction-Repair And Maint,
http://statistics.data.gov.uk/search?search=E07000114,Thanet District Council,20/09/2016,416352,419.40,,Bowman Maintenance Contracting,BMC001,Operational Services,Revenue,"Repairs,  Alter & Mtce - Build",Building Construction Material,
http://statistics.data.gov.uk/search?search=E07000114,Thanet District Council,20/09/2016,416076,9209.96,,Bpi Recycled Products,BPI002,Operational Services,Revenue,"Equip, Furniture And Materials",Environmental Services,
http://statistics.data.gov.uk/search?search=E07000114,Thanet District Council,20/09/2016,417062,12184.89,,Bramling Construction Ltd,BRA020,Corporate Resources and S151,Balance Sheet,Capital Exp-Non Council Assets,Grants,
http://statistics.data.gov.uk/search?search=E07000114,Thanet District Council,20/09/2016,417075,2131.00,,Bramling Construction Ltd,BRA020,Corporate Resources and S151,Balance Sheet,Capital Exp-Non Council Assets,Grants,
http://statistics.data.gov.uk/search?search=E07000114,Thanet District Council,20/09/2016,417077,7801.68,,Bramling Construction Ltd,BRA020,Corporate Resources and S151,Balance Sheet,Capital Exp-Non Council Assets,Grants,
http://statistics.data.gov.uk/search?search=E07000114,Thanet District Council,20/09/2016,416471,668.00,,C J Doors & Shutters Limited,CJD002,Operational Services,Revenue,"Repairs,  Alter & Mtce - Build",Building Construction Material,
http://statistics.data.gov.uk/search?search=E07000114,Thanet District Council,20/09/2016,416426,99391.69,,Canterbury City Council,CAN004,East Kent Shared Services,Revenue,Grants & Subscriptions,Various Cats - Public Sector,
http://statistics.data.gov.uk/search?search=E07000114,Thanet District Council,20/09/2016,416474,19878.33,,Canterbury City Council,CAN004,East Kent Shared Services,Revenue,Grants & Subscriptions,Various Cats - Public Sector,
http://statistics.data.gov.uk/search?search=E07000114,Thanet District Council,20/09/2016,416503,343.79,,Castle Automotive & Eng Supp Ltd,CAS024,Operational Services,Revenue,"Equip, Furniture And Materials",Vehicle Management,
http://statistics.data.gov.uk/search?search=E07000114,Thanet District Council,20/09/2016,416257,855.00,,Channel Commercials Plc,CCO001,Operational Services,Revenue,Direct Transport Costs,Vehicle Management,
http://statistics.data.gov.uk/search?search=E07000114,Thanet District Council,20/09/2016,416055,4899.60,,Cobalt Telephone Technologies Ltd,COB002,Operational Services,Revenue,Services,ICT,
http://statistics.data.gov.uk/search?search=E07000114,Thanet District Council,20/09/2016,416348,701.66,,Dennis Eagle Ltd,DEN005,Operational Services,Revenue,Direct Transport Costs,Vehicle Management,
http://statistics.data.gov.uk/search?search=E07000114,Thanet District Council,20/09/2016,416349,639.13,,Dennis Eagle Ltd,DEN005,Operational Services,Revenue,Direct Transport Costs,Vehicle Management,
http://statistics.data.gov.uk/search?search=E07000114,Thanet District Council,20/09/2016,416487,386.93,,Dennis Eagle Ltd,DEN005,Operational Services,Revenue,Direct Transport Costs,Vehicle Management,
http://statistics.data.gov.uk/search?search=E07000114,Thanet District Council,20/09/2016,416504,300.00,,Dotted Eyes Ltd,DOT001,Corporate Resources and S151,Revenue,Communications & Computing,ICT,
http://statistics.data.gov.uk/search?search=E07000114,Thanet District Council,20/09/2016,416977,293.49,,Electoral Reform Services,ELE010,Corporate Governance,Revenue,Communications & Computing,Facilities And Management Serv,
http://statistics.data.gov.uk/search?search=E07000114,Thanet District Council,20/09/2016,416977,680.56,,Electoral Reform Services,ELE010,Corporate Governance,Revenue,"Print, Stat And Gen Off Exps",Facilities And Management Serv,
http://statistics.data.gov.uk/search?search=E07000114,Thanet District Council,20/09/2016,416978,322.56,,Electoral Reform Services,ELE010,Corporate Governance,Revenue,Communications & Computing,Facilities And Management Serv,
http://statistics.data.gov.uk/search?search=E07000114,Thanet District Council,20/09/2016,416978,1194.62,,Electoral Reform Services,ELE010,Corporate Governance,Revenue,"Print, Stat And Gen Off Exps",Facilities And Management Serv,
http://statistics.data.gov.uk/search?search=E07000114,Thanet District Council,20/09/2016,417052,1366.00,,Family Mosaic Housing,FAM001,Corporate Resources and S151,Balance Sheet,Capital Exp-Non Council Assets,Housing Management,
http://statistics.data.gov.uk/search?search=E07000114,Thanet District Council,20/09/2016,417061,1378.19,,Family Mosaic Housing,FAM001,Corporate Resources and S151,Balance Sheet,Capital Exp-Non Council Assets,Housing Management,
http://statistics.data.gov.uk/search?search=E07000114,Thanet District Council,20/09/2016,417078,936.20,,Family Mosaic Housing,FAM001,Corporate Resources and S151,Balance Sheet,Capital Exp-Non Council Assets,Housing Management,
http://statistics.data.gov.uk/search?search=E07000114,Thanet District Council,20/09/2016,416078,930.00,,Florence Court Hotel,FLO003,Community Services,Revenue,Services,Housing Management,
http://statistics.data.gov.uk/search?search=E07000114,Thanet District Council,20/09/2016,416080,875.00,,Florence Court Hotel,FLO003,Community Services,Revenue,Services,Housing Management,
http://statistics.data.gov.uk/search?search=E07000114,Thanet District Council,20/09/2016,416081,930.00,,Florence Court Hotel,FLO003,Community Services,Revenue,Services,Housing Management,
http://statistics.data.gov.uk/search?search=E07000114,Thanet District Council,20/09/2016,416082,930.00,,Florence Court Hotel,FLO003,Community Services,Revenue,Services,Housing Management,
http://statistics.data.gov.uk/search?search=E07000114,Thanet District Council,20/09/2016,416312,490.00,,Florence Court Hotel,FLO003,Community Services,Revenue,Services,Housing Management,
http://statistics.data.gov.uk/search?search=E07000114,Thanet District Council,20/09/2016,416313,1085.00,,Florence Court Hotel,FLO003,Community Services,Revenue,Services,Housing Management,
http://statistics.data.gov.uk/search?search=E07000114,Thanet District Council,20/09/2016,416314,930.00,,Florence Court Hotel,FLO003,Community Services,Revenue,Services,Housing Management,
http://statistics.data.gov.uk/search?search=E07000114,Thanet District Council,20/09/2016,416315,1085.00,,Florence Court Hotel,FLO003,Community Services,Revenue,Services,Housing Management,
http://statistics.data.gov.uk/search?search=E07000114,Thanet District Council,20/09/2016,416316,930.00,,Florence Court Hotel,FLO003,Community Services,Revenue,Services,Housing Management,
http://statistics.data.gov.uk/search?search=E07000114,Thanet District Council,20/09/2016,416317,1085.00,,Florence Court Hotel,FLO003,Community Services,Revenue,Services,Housing Management,
http://statistics.data.gov.uk/search?search=E07000114,Thanet District Council,20/09/2016,416318,550.00,,Florence Court Hotel,FLO003,Community Services,Revenue,Services,Housing Management,
http://statistics.data.gov.uk/search?search=E07000114,Thanet District Council,20/09/2016,416358,1225.00,,Florence Court Hotel,FLO003,Community Services,Revenue,Services,Housing Management,
http://statistics.data.gov.uk/search?search=E07000114,Thanet District Council,20/09/2016,416346,2500.00,,G & G Forklifts,GGF001,Operational Services,Revenue,"Equip, Furniture And Materials",Vehicle Management,
http://statistics.data.gov.uk/search?search=E07000114,Thanet District Council,20/09/2016,416470,3605.00,,Glasdon Uk Ltd,GLA001,Operational Services,Revenue,"Equip, Furniture And Materials",Environmental Services,
http://statistics.data.gov.uk/search?search=E07000114,Thanet District Council,20/09/2016,416489,900.00,,Gulliver'S Truck Hire Limited,GUL001,Operational Services,Revenue,Cont Hire & Operating Lease,Vehicle Management,
http://statistics.data.gov.uk/search?search=E07000114,Thanet District Council,20/09/2016,417026,1120.00,,Hays Specialist Recruitment Ltd,HAY020,Corporate Resources and S151,Revenue,Services,Human Resources,
http://statistics.data.gov.uk/search?search=E07000114,Thanet District Council,20/09/2016,414132,-293.92,,Hr Go (Kent) Ltd,HRG001,Operational Services,Revenue,Agency Staff,Human Resources,
http://statistics.data.gov.uk/search?search=E07000114,Thanet District Council,20/09/2016,414134,-263.39,,Hr Go (Kent) Ltd,HRG001,Operational Services,Revenue,Agency Staff,Human Resources,
http://statistics.data.gov.uk/search?search=E07000114,Thanet District Council,20/09/2016,415718,8671.46,,Hr Go (Kent) Ltd,HRG001,Operational Services,Revenue,Agency Staff,Human Resources,
http://statistics.data.gov.uk/search?search=E07000114,Thanet District Council,20/09/2016,416238,10519.98,,Hr Go (Kent) Ltd,HRG001,Operational Services,Revenue,Agency Staff,Human Resources,
http://statistics.data.gov.uk/search?search=E07000114,Thanet District Council,20/09/2016,416400,1583.68,,Hr Go (Kent) Ltd,HRG001,Operational Services,Revenue,Agency Staff,Human Resources,
http://statistics.data.gov.uk/search?search=E07000114,Thanet District Council,20/09/2016,416401,1829.52,,Hr Go (Kent) Ltd,HRG001,Operational Services,Revenue,Agency Staff,Human Resources,
http://statistics.data.gov.uk/search?search=E07000114,Thanet District Council,20/09/2016,416403,1178.54,,Hr Go (Kent) Ltd,HRG001,Operational Services,Revenue,Agency Staff,Human Resources,
http://statistics.data.gov.uk/search?search=E07000114,Thanet District Council,20/09/2016,416404,1813.39,,Hr Go (Kent) Ltd,HRG001,Operational Services,Revenue,Agency Staff,Human Resources,
http://statistics.data.gov.uk/search?search=E07000114,Thanet District Council,20/09/2016,416406,358.16,,Hr Go (Kent) Ltd,HRG001,Operational Services,Revenue,Agency Staff,Human Resources,
http://statistics.data.gov.uk/search?search=E07000114,Thanet District Council,20/09/2016,416407,1502.47,,Hr Go (Kent) Ltd,HRG001,Operational Services,Revenue,Agency Staff,Human Resources,
http://statistics.data.gov.uk/search?search=E07000114,Thanet District Council,20/09/2016,416410,515.53,,Hr Go (Kent) Ltd,HRG001,Operational Services,Revenue,Agency Staff,Human Resources,
http://statistics.data.gov.uk/search?search=E07000114,Thanet District Council,20/09/2016,416516,16029.78,,Hr Go (Kent) Ltd,HRG001,Operational Services,Revenue,Agency Staff,Human Resources,
http://statistics.data.gov.uk/search?search=E07000114,Thanet District Council,20/09/2016,416517,13499.22,,Hr Go (Kent) Ltd,HRG001,Operational Services,Revenue,Agency Staff,Human Resources,
http://statistics.data.gov.uk/search?search=E07000114,Thanet District Council,20/09/2016,416552,9075.59,,Hr Go (Kent) Ltd,HRG001,Operational Services,Revenue,Agency Staff,Human Resources,
http://statistics.data.gov.uk/search?search=E07000114,Thanet District Council,20/09/2016,417005,309.75,,Hr Go (Kent) Ltd,HRG001,Corporate Resources and S151,Revenue,Agency Staff,Human Resources,
http://statistics.data.gov.uk/search?search=E07000114,Thanet District Council,20/09/2016,416247,1900.00,,Idox Software  Limited,IDO001,Corporate Resources and S151,Balance Sheet,Plant And Equipment,ICT,
http://statistics.data.gov.uk/search?search=E07000114,Thanet District Council,20/09/2016,416993,853.00,,Independent Parts & Services Ltd,IND014,Operational Services,Revenue,"Equip, Furniture And Materials",Environmental Services,
http://statistics.data.gov.uk/search?search=E07000114,Thanet District Council,20/09/2016,416441,4675.00,,Invicta Storage Systems Ltd,INV001,Corporate Governance,Revenue,"Repairs,  Alter & Mtce - Build",Building Construction Material,
http://statistics.data.gov.uk/search?search=E07000114,Thanet District Council,20/09/2016,416508,800.00,,James Davies,DAV031,Community Services,Revenue,"Equip, Furniture And Materials",Stationery,
http://statistics.data.gov.uk/search?search=E07000114,Thanet District Council,20/09/2016,417065,246362.00,,Kent & Medway Towns Fire Authority,KMT001,Corporate Resources and S151,Balance Sheet,Collection Fund,Various Cats - Public Sector,
http://statistics.data.gov.uk/search?search=E07000114,Thanet District Council,20/09/2016,417066,3894066.00,,Kent County Council,KCC022,Corporate Resources and S151,Balance Sheet,Collection Fund,Various Cats - Public Sector,
http://statistics.data.gov.uk/search?search=E07000114,Thanet District Council,20/09/2016,416184,2652.99,,Kent County Council (Kcs),KCC003,Operational Services,Revenue,"Equip, Furniture And Materials",Facilities And Management Serv,
http://statistics.data.gov.uk/search?search=E07000114,Thanet District Council,20/09/2016,416270,2447.84,,Kent County Council (Kcs),KCC003,Operational Services,Revenue,"Equip, Furniture And Materials",Facilities And Management Serv,
http://statistics.data.gov.uk/search?search=E07000114,Thanet District Council,20/09/2016,416278,2728.26,,Kent County Council (Kcs),KCC003,Operational Services,Revenue,"Equip, Furniture And Materials",Facilities And Management Serv,
http://statistics.data.gov.uk/search?search=E07000114,Thanet District Council,20/09/2016,416279,3542.08,,Kent County Council (Kcs),KCC003,Operational Services,Revenue,"Equip, Furniture And Materials",Facilities And Management Serv,
http://statistics.data.gov.uk/search?search=E07000114,Thanet District Council,20/09/2016,416374,1875.44,,Kent County Council (Kcs),KCC003,Operational Services,Revenue,"Equip, Furniture And Materials",Facilities And Management Serv,
http://statistics.data.gov.uk/search?search=E07000114,Thanet District Council,20/09/2016,416375,4506.56,,Kent County Council (Kcs),KCC003,Operational Services,Revenue,Direct Transport Costs,Facilities And Management Serv,
http://statistics.data.gov.uk/search?search=E07000114,Thanet District Council,20/09/2016,417067,525761.00,,Kent Police & Crime Commissioner,KPA003,Corporate Resources and S151,Balance Sheet,Collection Fund,Various Cats - Public Sector,
http://statistics.data.gov.uk/search?search=E07000114,Thanet District Council,20/09/2016,417051,11350.00,,Lifestyle (Kent) Ltd,LIF008,Corporate Resources and S151,Balance Sheet,Capital Exp-Non Council Assets,Grants,
http://statistics.data.gov.uk/search?search=E07000114,Thanet District Council,20/09/2016,416096,280.00,,Magees Guesthouse,MAG009,Community Services,Revenue,Services,Grants,
http://statistics.data.gov.uk/search?search=E07000114,Thanet District Council,20/09/2016,416502,879.75,,Mears Ltd,MEA003,Corporate Governance,Revenue,"Repairs,  Alter & Mtce - Build",Construction-Repair And Maint,
http://statistics.data.gov.uk/search?search=E07000114,Thanet District Council,20/09/2016,416730,7236.19,,Med Clean South Ltd,MED015,Operational Services,Revenue,Cleaning & Domestic Supplies,Cleaning And Janitorial,
http://statistics.data.gov.uk/search?search=E07000114,Thanet District Council,20/09/2016,407081,1129.00,,Midland Software Limited,MID013,Corporate Resources and S151,Balance Sheet,Plant And Equipment,ICT,
http://statistics.data.gov.uk/search?search=E07000114,Thanet District Council,20/09/2016,416381,460.69,,Morgan Jones Ltd,MOR001,Community Services,Revenue,Agency Staff,Human Resources,
http://statistics.data.gov.uk/search?search=E07000114,Thanet District Council,20/09/2016,416383,306.18,,Morgan Jones Ltd,MOR001,Corporate Governance,Revenue,Agency Staff,Human Resources,
http://statistics.data.gov.uk/search?search=E07000114,Thanet District Council,20/09/2016,416874,326.81,,Morgan Jones Ltd,MOR001,Community Services,Revenue,Agency Staff,Human Resources,
http://statistics.data.gov.uk/search?search=E07000114,Thanet District Council,20/09/2016,416875,314.16,,Morgan Jones Ltd,MOR001,Corporate Governance,Revenue,Agency Staff,Human Resources,
http://statistics.data.gov.uk/search?search=E07000114,Thanet District Council,20/09/2016,416878,590.92,,Morgan Jones Ltd,MOR001,Corporate Governance,Revenue,Agency Staff,Human Resources,
http://statistics.data.gov.uk/search?search=E07000114,Thanet District Council,20/09/2016,416213,47.50,,Mr Darren Osborne,OSB008,Community Services,Revenue,Cleaning & Domestic Supplies,Cleaning And Janitorial,
http://statistics.data.gov.uk/search?search=E07000114,Thanet District Council,20/09/2016,416213,575.00,,Mr Darren Osborne,OSB008,Corporate Governance,Revenue,Cleaning & Domestic Supplies,Cleaning And Janitorial,
http://statistics.data.gov.uk/search?search=E07000114,Thanet District Council,20/09/2016,416213,30.00,,Mr Darren Osborne,OSB008,Operational Services,Revenue,Cleaning & Domestic Supplies,Cleaning And Janitorial,
http://statistics.data.gov.uk/search?search=E07000114,Thanet District Council,20/09/2016,416536,1053.36,,Neopost Ltd,NEO003,Corporate Governance,Revenue,"Equip, Furniture And Materials",Mail Services,
http://statistics.data.gov.uk/search?search=E07000114,Thanet District Council,20/09/2016,416072,3850.00,,Premier Signs,PRE027,Community Services,Revenue,"Print, Stat And Gen Off Exps",Building Construction Material,
http://statistics.data.gov.uk/search?search=E07000114,Thanet District Council,20/09/2016,416873,384.00,,Probrand Ltd,PRO012,East Kent Shared Services,Revenue,Communications & Computing,ICT,
http://statistics.data.gov.uk/search?search=E07000114,Thanet District Council,20/09/2016,416350,22695.89,,Profile Security Services Limited,PRO018,Operational Services,Revenue,Services,Facilities And Management Serv,
http://statistics.data.gov.uk/search?search=E07000114,Thanet District Council,20/09/2016,416894,490.00,,R Cannon,CAN007,Operational Services,Revenue,Services,Maritime Services,
http://statistics.data.gov.uk/search?search=E07000114,Thanet District Council,20/09/2016,415855,287.00,,R S Components Ltd,RSC001,Operational Services,Revenue,"Equip, Furniture And Materials",Maritime Services,
http://statistics.data.gov.uk/search?search=E07000114,Thanet District Council,20/09/2016,416303,2868.00,,Royal Mail,ROY004,Corporate Governance,Revenue,Communications & Computing,Mail Services,
http://statistics.data.gov.uk/search?search=E07000114,Thanet District Council,20/09/2016,416466,1588.26,,Royal Mail,ROY004,Corporate Governance,Revenue,Communications & Computing,Mail Services,
http://statistics.data.gov.uk/search?search=E07000114,Thanet District Council,20/09/2016,416341,2209.33,,Securitas Security Services (Uk) Ltd,SEC019,Corporate Governance,Revenue,Services,Facilities And Management Serv,
http://statistics.data.gov.uk/search?search=E07000114,Thanet District Council,20/09/2016,416394,5681.55,,Shoreline Surveys Limited,SHO001,Operational Services,Revenue,"Repairs,  Alter & Mtce - Build",Maritime Services,
http://statistics.data.gov.uk/search?search=E07000114,Thanet District Council,20/09/2016,415901,821.60,,Silgo Lubricants Ltd,SIL007,Operational Services,Revenue,Direct Transport Costs,Vehicle Management,
http://statistics.data.gov.uk/search?search=E07000114,Thanet District Council,20/09/2016,415898,1588.34,,Siteimprove Ltd,SIT006,Corporate Resources and S151,Revenue,Communications & Computing,ICT,
http://statistics.data.gov.uk/search?search=E07000114,Thanet District Council,20/09/2016,416869,1433.00,,Solarwinds Software Europe Limited,SOL016,East Kent Shared Services,Revenue,Communications & Computing,ICT,
http://statistics.data.gov.uk/search?search=E07000114,Thanet District Council,20/09/2016,416377,684.00,,St Lawrence College Enterprises Ltd,STL008,Corporate Governance,Revenue,Rents,Arts And Leisure Services,
http://statistics.data.gov.uk/search?search=E07000114,Thanet District Council,20/09/2016,416018,190.00,,St Marks Church,STM001,Corporate Governance,Revenue,Rents,Facilities And Management Serv,
http://statistics.data.gov.uk/search?search=E07000114,Thanet District Council,20/09/2016,416019,190.00,,St Marks Church,STM001,Corporate Governance,Revenue,Rents,Facilities And Management Serv,
http://statistics.data.gov.uk/search?search=E07000114,Thanet District Council,20/09/2016,416020,95.00,,St Marks Church,STM001,Corporate Governance,Revenue,Rents,Facilities And Management Serv,
http://statistics.data.gov.uk/search?search=E07000114,Thanet District Council,20/09/2016,416020,95.00,,St Marks Church,STM001,Corporate Governance,Revenue,Rents,Facilities And Management Serv,
http://statistics.data.gov.uk/search?search=E07000114,Thanet District Council,20/09/2016,416563,502.00,,Tennants Distribution Limited,TEN005,Operational Services,Revenue,Direct Transport Costs,Vehicle Management,
http://statistics.data.gov.uk/search?search=E07000114,Thanet District Council,20/09/2016,416565,502.00,,Tennants Distribution Limited,TEN005,Operational Services,Revenue,Direct Transport Costs,Vehicle Management,
http://statistics.data.gov.uk/search?search=E07000114,Thanet District Council,20/09/2016,416425,4012.80,,Tetlow King Planning Limited,TET002,Community Services,Revenue,Services,Consultancy,
http://statistics.data.gov.uk/search?search=E07000114,Thanet District Council,20/09/2016,416193,3500.01,,The Glenwood Hotel,GLE007,Community Services,Revenue,Services,Housing Management,
http://statistics.data.gov.uk/search?search=E07000114,Thanet District Council,20/09/2016,416197,2579.16,,The Glenwood Hotel,GLE007,Community Services,Revenue,Services,Housing Management,
http://statistics.data.gov.uk/search?search=E07000114,Thanet District Council,20/09/2016,416357,3104.17,,The Glenwood Hotel,GLE007,Community Services,Revenue,Services,Housing Management,
http://statistics.data.gov.uk/search?search=E07000114,Thanet District Council,20/09/2016,416475,300.00,,The Gpm Partnership Limited,GPM001,Corporate Resources and S151,Balance Sheet,Council Dwellings,Consultancy,
http://statistics.data.gov.uk/search?search=E07000114,Thanet District Council,20/09/2016,416332,1325.00,,The Margate Society Cic,MAR108,Community Services,Revenue,Services,Human Resources,
http://statistics.data.gov.uk/search?search=E07000114,Thanet District Council,20/09/2016,416872,500.00,,Tunbridge Wells Borough Council,TUN002,Operational Services,Revenue,"Equip, Furniture And Materials",Various Cats - Public Sector,
http://statistics.data.gov.uk/search?search=E07000114,Thanet District Council,20/09/2016,416428,80.67,,Veolia Es (Uk) Ltd,VEO001,Corporate Resources and S151,Balance Sheet,Rechargeable Works,Environmental Services,
http://statistics.data.gov.uk/search?search=E07000114,Thanet District Council,20/09/2016,416428,2986.36,,Veolia Es (Uk) Ltd,VEO001,Operational Services,Revenue,Cleaning & Domestic Supplies,Environmental Services,
http://statistics.data.gov.uk/search?search=E07000114,Thanet District Council,20/09/2016,416429,415.45,,Veolia Es (Uk) Ltd,VEO001,Operational Services,Revenue,Cleaning & Domestic Supplies,Environmental Services,
http://statistics.data.gov.uk/search?search=E07000114,Thanet District Council,20/09/2016,416304,292.79,,Viridor Waste Management Ltd,VIR003,Corporate Governance,Revenue,Private Contractors,Environmental Services,
http://statistics.data.gov.uk/search?search=E07000114,Thanet District Council,20/09/2016,416331,420.00,,Westward Ho Hotel,WES055,Community Services,Revenue,Services,Housing Management,
http://statistics.data.gov.uk/search?search=E07000114,Thanet District Council,21/09/2016,417206,1985.00,,Acol Parish Council,ACO001,Corporate Resources and S151,Balance Sheet,Collection Fund - Preceptors,Various Cats - Public Sector,
http://statistics.data.gov.uk/search?search=E07000114,Thanet District Council,21/09/2016,417206,362.80,,Acol Parish Council,ACO001,Operational Services,Revenue,Other Local Authorities,Various Cats - Public Sector,
http://statistics.data.gov.uk/search?search=E07000114,Thanet District Council,21/09/2016,416204,660.00,,Aston Walker,AST008,Community Services,Revenue,Services,Cemetery And Crematorium,
http://statistics.data.gov.uk/search?search=E07000114,Thanet District Council,21/09/2016,417207,25330.00,,Birchington Parish Council,BIR001,Corporate Resources and S151,Balance Sheet,Collection Fund - Preceptors,Various Cats - Public Sector,
http://statistics.data.gov.uk/search?search=E07000114,Thanet District Council,21/09/2016,417207,1783.68,,Birchington Parish Council,BIR001,Operational Services,Revenue,Other Local Authorities,Various Cats - Public Sector,
http://statistics.data.gov.uk/search?search=E07000114,Thanet District Council,21/09/2016,417208,182147.50,,Broadstairs & St Peters Town Council,BRO005,Corporate Resources and S151,Balance Sheet,Collection Fund - Preceptors,Various Cats - Public Sector,
http://statistics.data.gov.uk/search?search=E07000114,Thanet District Council,21/09/2016,417208,10389.11,,Broadstairs & St Peters Town Council,BRO005,Operational Services,Revenue,Other Local Authorities,Various Cats - Public Sector,
http://statistics.data.gov.uk/search?search=E07000114,Thanet District Council,21/09/2016,417209,7036.00,,Cliffsend Parish Council,CLI015,Corporate Resources and S151,Balance Sheet,Collection Fund - Preceptors,Various Cats - Public Sector,
http://statistics.data.gov.uk/search?search=E07000114,Thanet District Council,21/09/2016,417209,403.76,,Cliffsend Parish Council,CLI015,Operational Services,Revenue,Other Local Authorities,Various Cats - Public Sector,
http://statistics.data.gov.uk/search?search=E07000114,Thanet District Council,21/09/2016,415977,2500.00,,Deyton Bell Limited,DEY001,Community Services,Revenue,Services,Consultancy,
http://statistics.data.gov.uk/search?search=E07000114,Thanet District Council,21/09/2016,416955,710.00,,Home Front Bus,HOM017,Community Services,Revenue,Services,Arts And Leisure Services,
http://statistics.data.gov.uk/search?search=E07000114,Thanet District Council,21/09/2016,417001,529.47,,Hr Go (Kent) Ltd,HRG001,Community Services,Revenue,Agency Staff,Human Resources,
http://statistics.data.gov.uk/search?search=E07000114,Thanet District Council,21/09/2016,417003,1752.08,,Hr Go (Kent) Ltd,HRG001,Operational Services,Revenue,Agency Staff,Human Resources,
http://statistics.data.gov.uk/search?search=E07000114,Thanet District Council,21/09/2016,417210,8108.00,,Manston Parish Council,MAN001,Corporate Resources and S151,Balance Sheet,Collection Fund - Preceptors,Various Cats - Public Sector,
http://statistics.data.gov.uk/search?search=E07000114,Thanet District Council,21/09/2016,417210,1620.61,,Manston Parish Council,MAN001,Operational Services,Revenue,Other Local Authorities,Various Cats - Public Sector,
http://statistics.data.gov.uk/search?search=E07000114,Thanet District Council,21/09/2016,417216,69625.00,,Margate Charter Trustees,MCT001,Corporate Resources and S151,Balance Sheet,Collection Fund - Preceptors,Various Cats - Public Sector,
http://statistics.data.gov.uk/search?search=E07000114,Thanet District Council,21/09/2016,417216,9654.62,,Margate Charter Trustees,MCT001,Operational Services,Revenue,Other Local Authorities,Various Cats - Public Sector,
http://statistics.data.gov.uk/search?search=E07000114,Thanet District Council,21/09/2016,417019,2766.33,,Mears Ltd,MEA003,Community Services,Revenue,"Repairs,  Alter & Mtce - Build",Construction-Repair And Maint,
http://statistics.data.gov.uk/search?search=E07000114,Thanet District Council,21/09/2016,417020,97706.27,,Mears Ltd,MEA003,Community Services,Revenue,"Repairs,  Alter & Mtce - Build",Construction-Repair And Maint,
http://statistics.data.gov.uk/search?search=E07000114,Thanet District Council,21/09/2016,417021,1805.71,,Mears Ltd,MEA003,Community Services,Revenue,"Repairs,  Alter & Mtce - Build",Construction-Repair And Maint,
http://statistics.data.gov.uk/search?search=E07000114,Thanet District Council,21/09/2016,417211,26705.50,,Minster Parish Council,MIN001,Corporate Resources and S151,Balance Sheet,Collection Fund - Preceptors,Various Cats - Public Sector,
http://statistics.data.gov.uk/search?search=E07000114,Thanet District Council,21/09/2016,417211,15889.79,,Minster Parish Council,MIN001,Operational Services,Revenue,Other Local Authorities,Various Cats - Public Sector,
http://statistics.data.gov.uk/search?search=E07000114,Thanet District Council,21/09/2016,417212,4066.50,,Monkton Parish Council,MON001,Corporate Resources and S151,Balance Sheet,Collection Fund - Preceptors,Various Cats - Public Sector,
http://statistics.data.gov.uk/search?search=E07000114,Thanet District Council,21/09/2016,417212,1159.11,,Monkton Parish Council,MON001,Operational Services,Revenue,Other Local Authorities,Various Cats - Public Sector,
http://statistics.data.gov.uk/search?search=E07000114,Thanet District Council,21/09/2016,417213,206952.00,,Ramsgate Town Council,RAM031,Corporate Resources and S151,Balance Sheet,Collection Fund - Preceptors,Various Cats - Public Sector,
http://statistics.data.gov.uk/search?search=E07000114,Thanet District Council,21/09/2016,417213,35851.51,,Ramsgate Town Council,RAM031,Operational Services,Revenue,Other Local Authorities,Various Cats - Public Sector,
http://statistics.data.gov.uk/search?search=E07000114,Thanet District Council,21/09/2016,416741,1836.00,,Sharpe Pritchard Llp,SHA030,Corporate Resources and S151,Balance Sheet,Other Land And Buildings-Hra,Legal Services,
http://statistics.data.gov.uk/search?search=E07000114,Thanet District Council,21/09/2016,416505,400.00,,Shout Spark & Go Limited,SHO014,Community Services,Revenue,Miscellaneous Expenses,Facilities And Management Serv,
http://statistics.data.gov.uk/search?search=E07000114,Thanet District Council,21/09/2016,416249,1480.00,,Spree Ndt Co Ltd,SPR005,Corporate Resources and S151,Balance Sheet,Plant And Equipment,Construction-Repair And Maint,
http://statistics.data.gov.uk/search?search=E07000114,Thanet District Council,21/09/2016,417214,7789.50,,St Nicholas At Wade & Sarre P Counc,STN001,Corporate Resources and S151,Balance Sheet,Collection Fund - Preceptors,Various Cats - Public Sector,
http://statistics.data.gov.uk/search?search=E07000114,Thanet District Council,21/09/2016,417214,366.50,,St Nicholas At Wade & Sarre P Counc,STN001,Operational Services,Revenue,Grants & Subscriptions,Various Cats - Public Sector,
http://statistics.data.gov.uk/search?search=E07000114,Thanet District Council,21/09/2016,417214,4331.43,,St Nicholas At Wade & Sarre P Counc,STN001,Operational Services,Revenue,Other Local Authorities,Various Cats - Public Sector,
http://statistics.data.gov.uk/search?search=E07000114,Thanet District Council,21/09/2016,416883,10343.92,,Standage & Co Limited,STA058,Corporate Resources and S151,Balance Sheet,Council Dwellings,Construction-Repair And Maint,
http://statistics.data.gov.uk/search?search=E07000114,Thanet District Council,21/09/2016,416884,6296.59,,Standage & Co Limited,STA058,Corporate Resources and S151,Balance Sheet,Council Dwellings,Construction-Repair And Maint,
http://statistics.data.gov.uk/search?search=E07000114,Thanet District Council,21/09/2016,416885,1998.37,,Standage & Co Limited,STA058,Corporate Resources and S151,Balance Sheet,Council Dwellings,Construction-Repair And Maint,
http://statistics.data.gov.uk/search?search=E07000114,Thanet District Council,21/09/2016,416886,20672.30,,Standage & Co Limited,STA058,Corporate Resources and S151,Balance Sheet,Council Dwellings,Construction-Repair And Maint,
http://statistics.data.gov.uk/search?search=E07000114,Thanet District Council,21/09/2016,416887,27573.81,,Standage & Co Limited,STA058,Corporate Resources and S151,Balance Sheet,Council Dwellings,Construction-Repair And Maint,
http://statistics.data.gov.uk/search?search=E07000114,Thanet District Council,21/09/2016,416956,410.00,,Trust For Thanet Archaeology,TRU008,Community Services,Revenue,Services,Arts And Leisure Services,
http://statistics.data.gov.uk/search?search=E07000114,Thanet District Council,21/09/2016,417215,33405.00,,Westgate On Sea Town Council,WES052,Corporate Resources and S151,Balance Sheet,Collection Fund - Preceptors,Various Cats - Public Sector,
http://statistics.data.gov.uk/search?search=E07000114,Thanet District Council,21/09/2016,417215,1888.77,,Westgate On Sea Town Council,WES052,Operational Services,Revenue,Other Local Authorities,Various Cats - Public Sector,
http://statistics.data.gov.uk/search?search=E07000114,Thanet District Council,22/09/2016,417307,1480.99,,Co-Operative Bank Paypoint,COO018,Corporate Resources and S151,Revenue,Services,Financial Services,
http://statistics.data.gov.uk/search?search=E07000114,Thanet District Council,22/09/2016,417307,493.66,,Co-Operative Bank Paypoint,COO018,Community Services,Revenue,Services,Financial Services,
http://statistics.data.gov.uk/search?search=E07000114,Thanet District Council,22/09/2016,417245,240704.00,,Maidstone Borough Council,MAI002,Corporate Resources and S151,Balance Sheet,Collection Fund,Various Cats - Public Sector,
http://statistics.data.gov.uk/search?search=E07000114,Thanet District Council,22/09/2016,417245,690102.00,,Maidstone Borough Council,MAI002,Corporate Resources and S151,Revenue,Revenue Financing,Various Cats - Public Sector,
http://statistics.data.gov.uk/search?search=E07000114,Thanet District Council,22/09/2016,417310,275.47,,Nat West Bank,NWE001,Corporate Resources and S151,Revenue,Services,Various Categories,
http://statistics.data.gov.uk/search?search=E07000114,Thanet District Council,22/09/2016,417246,63554.36,,Public Works Loan Board,PWL001,Corporate Resources and S151,Balance Sheet,Debit Interest And Expenses,Investments And Loans,
http://statistics.data.gov.uk/search?search=E07000114,Thanet District Council,22/09/2016,417302,1165.07,,Santander,SAN017,Corporate Resources and S151,Revenue,Services,Various Categories,
http://statistics.data.gov.uk/search?search=E07000114,Thanet District Council,22/09/2016,417303,1869.16,,Santander,SAN017,Corporate Resources and S151,Revenue,Services,Various Categories,
http://statistics.data.gov.uk/search?search=E07000114,Thanet District Council,22/09/2016,417303,623.05,,Santander,SAN017,Community Services,Revenue,Services,Various Categories,
http://statistics.data.gov.uk/search?search=E07000114,Thanet District Council,22/09/2016,417294,-197192.00,,Secretary Of State,SEC003,Corporate Resources and S151,Revenue,Revenue Financing,Government Agencies,
http://statistics.data.gov.uk/search?search=E07000114,Thanet District Council,22/09/2016,417294,1083261.00,,Secretary Of State,SEC003,Corporate Resources and S151,Balance Sheet,Collection Fund,Government Agencies,
http://statistics.data.gov.uk/search?search=E07000114,Thanet District Council,22/09/2016,417305,2347.82,,Worldpay Ltd,WOR008,Corporate Resources and S151,Revenue,Services,Financial Services,
http://statistics.data.gov.uk/search?search=E07000114,Thanet District Council,22/09/2016,417309,390.88,,Worldpay Ltd,WOR008,Corporate Resources and S151,Revenue,Services,Financial Services,
http://statistics.data.gov.uk/search?search=E07000114,Thanet District Council,22/09/2016,417316,2404.13,,Worldpay Ltd,WOR008,Corporate Resources and S151,Revenue,Services,Financial Services,
http://statistics.data.gov.uk/search?search=E07000114,Thanet District Council,26/09/2016,PC8721,82.23,,Akro Ltd,N/A,Operational Services,Revenue,"Equip, Furniture And Materials",Facilities And Management Serv,
http://statistics.data.gov.uk/search?search=E07000114,Thanet District Council,26/09/2016,PC8684,1.67,,Aldi,N/A,Operational Services,Revenue,Catering,Catering,
http://statistics.data.gov.uk/search?search=E07000114,Thanet District Council,26/09/2016,PC8685,0.78,,Aldi,N/A,Operational Services,Revenue,Catering,Catering,
http://statistics.data.gov.uk/search?search=E07000114,Thanet District Council,26/09/2016,PC8758,3.59,,Aldi,N/A,Operational Services,Revenue,Catering,Catering,
http://statistics.data.gov.uk/search?search=E07000114,Thanet District Council,26/09/2016,PC8759,6.16,,Aldi,N/A,Operational Services,Revenue,Catering,Catering,
http://statistics.data.gov.uk/search?search=E07000114,Thanet District Council,26/09/2016,417312,501.97,,Allstar Business Solutions Ltd,ALL038,Operational Services,Revenue,Direct Transport Costs,Vehicle Management,
http://statistics.data.gov.uk/search?search=E07000114,Thanet District Council,26/09/2016,PC8710,15.99,,Amazon EU,N/A,East Kent Shared Services,Revenue,"Equip, Furniture And Materials",Stationery,
http://statistics.data.gov.uk/search?search=E07000114,Thanet District Council,26/09/2016,PC8637,11.10,,Amazon UK Marketplace,N/A,Community Services,Revenue,"Print, Stat And Gen Off Exps",Stationery,
http://statistics.data.gov.uk/search?search=E07000114,Thanet District Council,26/09/2016,PC8682,18.24,,Amazon UK Marketplace,N/A,East Kent Shared Services,Revenue,"Equip, Furniture And Materials",Stationery,
http://statistics.data.gov.uk/search?search=E07000114,Thanet District Council,26/09/2016,PC8695,14.97,,Amazon UK Marketplace,N/A,Operational Services,Revenue,"Equip, Furniture And Materials",Stationery,
http://statistics.data.gov.uk/search?search=E07000114,Thanet District Council,26/09/2016,PC8700,6.84,,Amazon UK Marketplace,N/A,Community Services,Revenue,"Print, Stat And Gen Off Exps",Stationery,
http://statistics.data.gov.uk/search?search=E07000114,Thanet District Council,26/09/2016,PC8753,2.39,,Amazon UK Marketplace,N/A,Operational Services,Revenue,"Equip, Furniture And Materials",Stationery,
http://statistics.data.gov.uk/search?search=E07000114,Thanet District Council,26/09/2016,PC8754,3.95,,Amazon UK Marketplace,N/A,Operational Services,Revenue,"Equip, Furniture And Materials",Stationery,
http://statistics.data.gov.uk/search?search=E07000114,Thanet District Council,26/09/2016,PC8736,171.80,,Amazon UK Retail,N/A,Community Services,Revenue,"Print, Stat And Gen Off Exps",Stationery,
http://statistics.data.gov.uk/search?search=E07000114,Thanet District Council,26/09/2016,PC8702,40.78,,Argos Retail Group,N/A,Operational Services,Revenue,"Equip, Furniture And Materials",Domestic Goods,
http://statistics.data.gov.uk/search?search=E07000114,Thanet District Council,26/09/2016,PC8712,48.94,8.16,Argos Retail Group,N/A,Operational Services,Revenue,"Equip, Furniture And Materials",Domestic Goods,
http://statistics.data.gov.uk/search?search=E07000114,Thanet District Council,26/09/2016,PC8715,5.83,,Asda,N/A,Community Services,Revenue,"Equip, Furniture And Materials",Catering,
http://statistics.data.gov.uk/search?search=E07000114,Thanet District Council,26/09/2016,PC8756,10.71,,Asda,N/A,Operational Services,Revenue,Catering,Catering,
http://statistics.data.gov.uk/search?search=E07000114,Thanet District Council,26/09/2016,PC8757,3.33,,Asda,N/A,Operational Services,Revenue,Catering,Catering,
http://statistics.data.gov.uk/search?search=E07000114,Thanet District Council,26/09/2016,PC8698,8.25,,Booker Ltd,N/A,Chief Executive,Revenue,Catering,Catering,
http://statistics.data.gov.uk/search?search=E07000114,Thanet District Council,26/09/2016,PC8699,9.68,,Booker Ltd,N/A,Community Services,Revenue,"Equip, Furniture And Materials",Catering,
http://statistics.data.gov.uk/search?search=E07000114,Thanet District Council,26/09/2016,PC8735,17.16,,Booker Ltd ,N/A,Community Services,Revenue,"Equip, Furniture And Materials",Catering,
http://statistics.data.gov.uk/search?search=E07000114,Thanet District Council,26/09/2016,PC8692,313.36,,Cartridgesave.co.uk,N/A,Operational Services,Revenue,"Equip, Furniture And Materials",Stationery,
http://statistics.data.gov.uk/search?search=E07000114,Thanet District Council,26/09/2016,PC8701,50.00,,Darren Caveney (Paypal),N/A,Corporate Resources and S151,Revenue,Advertising Expenses,Facilities And Management Serv,
http://statistics.data.gov.uk/search?search=E07000114,Thanet District Council,26/09/2016,PC8745,32.95,,DRI Fabula Tech,N/A,East Kent Shared Services,Revenue,Communications & Computing,ICT,
http://statistics.data.gov.uk/search?search=E07000114,Thanet District Council,26/09/2016,PC8729,250.00,,DVLA Dup Reg Doc,N/A,Operational Services,Revenue,Direct Transport Costs,Various Cats - Public Sector,
http://statistics.data.gov.uk/search?search=E07000114,Thanet District Council,26/09/2016,PC8690,167.50,,Dvla.gov.uk,N/A,Operational Services,Revenue,Direct Transport Costs,Various Cats - Public Sector,
http://statistics.data.gov.uk/search?search=E07000114,Thanet District Council,26/09/2016,PC8691,232.50,,Dvla.gov.uk,N/A,Operational Services,Revenue,Direct Transport Costs,Various Cats - Public Sector,
http://statistics.data.gov.uk/search?search=E07000114,Thanet District Council,26/09/2016,PC8738,64.13,,East Kent College,N/A,Community Services,Revenue,Catering,Human Resources,
http://statistics.data.gov.uk/search?search=E07000114,Thanet District Council,26/09/2016,PC8697,76.95,12.83,Expedia,N/A,East Kent Shared Services,Revenue,Expenses,Human Resources,
http://statistics.data.gov.uk/search?search=E07000114,Thanet District Council,26/09/2016,PC8656,14.14,,Facebook,N/A,Community Services,Revenue,Miscellaneous Expenses,Facilities And Management Serv,
http://statistics.data.gov.uk/search?search=E07000114,Thanet District Council,26/09/2016,PC8760,20.00,,Grange Laundrette Ltd,N/A,Operational Services,Revenue,Services,Cleaning & Janitorial,
http://statistics.data.gov.uk/search?search=E07000114,Thanet District Council,26/09/2016,PC8661,81.00,,HM Court,N/A,East Kent Shared Services,Revenue,Services,Various Cats - Public Sector,
http://statistics.data.gov.uk/search?search=E07000114,Thanet District Council,26/09/2016,PC8662,75.00,,HM Court,N/A,East Kent Shared Services,Revenue,Services,Various Cats - Public Sector,
http://statistics.data.gov.uk/search?search=E07000114,Thanet District Council,26/09/2016,PC8663,147.00,,HM Court,N/A,East Kent Shared Services,Revenue,Services,Various Cats - Public Sector,
http://statistics.data.gov.uk/search?search=E07000114,Thanet District Council,26/09/2016,PC8664,1773.00,,HM Court,N/A,East Kent Shared Services,Revenue,Services,Various Cats - Public Sector,
http://statistics.data.gov.uk/search?search=E07000114,Thanet District Council,26/09/2016,PC8665,2289.00,,HM Court,N/A,East Kent Shared Services,Revenue,Services,Various Cats - Public Sector,
http://statistics.data.gov.uk/search?search=E07000114,Thanet District Council,26/09/2016,PC8666,1152.00,,HM Court,N/A,East Kent Shared Services,Revenue,Services,Various Cats - Public Sector,
http://statistics.data.gov.uk/search?search=E07000114,Thanet District Council,26/09/2016,PC8680,286.67,,Holiday Inns Guildford,N/A,Corporate Resources and S151,Revenue,Training,Human Resources,
http://statistics.data.gov.uk/search?search=E07000114,Thanet District Council,26/09/2016,PC8714,21.00,3.5,Hotel Ibis,N/A,Operational Services,Revenue,Training,Human Resources,
http://statistics.data.gov.uk/search?search=E07000114,Thanet District Council,26/09/2016,PC8725,80.10,,Kaiser+Kraft Ltd,N/A,Operational Services,Revenue,"Equip, Furniture And Materials",Facilities And Management Serv,
http://statistics.data.gov.uk/search?search=E07000114,Thanet District Council,26/09/2016,PC8694,45.36,,Kelsey Publishing Limited,N/A,Community Services,Revenue,Grants & Subscriptions,Financial Services,
http://statistics.data.gov.uk/search?search=E07000114,Thanet District Council,26/09/2016,PC8677,5.00,,Leafi Ltd,N/A,Community Services,Revenue,Catering,Human Resources,
http://statistics.data.gov.uk/search?search=E07000114,Thanet District Council,26/09/2016,PC8723,77.70,,London & South East,N/A,Corporate Governance,Revenue,Public Transport,Human Resources,
http://statistics.data.gov.uk/search?search=E07000114,Thanet District Council,26/09/2016,PC8724,77.70,,London & South East,N/A,Chief Executive,Revenue,Public Transport,Human Resources,
http://statistics.data.gov.uk/search?search=E07000114,Thanet District Council,26/09/2016,PC8689,52.80,,Osbornebooks.co.uk,N/A,Corporate Resources and S151,Revenue,Training,Stationery,
http://statistics.data.gov.uk/search?search=E07000114,Thanet District Council,26/09/2016,PC8728,4.95,,Oyez Forms Link,N/A,Community Services,Revenue,"Print, Stat And Gen Off Exps",Stationery,
http://statistics.data.gov.uk/search?search=E07000114,Thanet District Council,26/09/2016,PC8713,269.85,44.98,Park Inn By,N/A,Operational Services,Revenue,Training,Human Resources,
http://statistics.data.gov.uk/search?search=E07000114,Thanet District Council,26/09/2016,PC8671,325.00,,Possession Claims Online,N/A,Community Services,Revenue,Services,Various Cats - Public Sector,
http://statistics.data.gov.uk/search?search=E07000114,Thanet District Council,26/09/2016,PC8672,121.00,,Possession Claims Online,N/A,Community Services,Revenue,Services,Various Cats - Public Sector,
http://statistics.data.gov.uk/search?search=E07000114,Thanet District Council,26/09/2016,PC8674,121.00,,Possession Claims Online,N/A,Community Services,Revenue,Services,Various Cats - Public Sector,
http://statistics.data.gov.uk/search?search=E07000114,Thanet District Council,26/09/2016,PC8681,325.00,,Possession Claims Online,N/A,Community Services,Revenue,Services,Various Cats - Public Sector,
http://statistics.data.gov.uk/search?search=E07000114,Thanet District Council,26/09/2016,PC8683,325.00,,Possession Claims Online,N/A,Community Services,Revenue,Services,Various Cats - Public Sector,
http://statistics.data.gov.uk/search?search=E07000114,Thanet District Council,26/09/2016,PC8686,121.00,,Possession Claims Online,N/A,Community Services,Revenue,Services,Various Cats - Public Sector,
http://statistics.data.gov.uk/search?search=E07000114,Thanet District Council,26/09/2016,PC8687,121.00,,Possession Claims Online,N/A,Community Services,Revenue,Services,Various Cats - Public Sector,
http://statistics.data.gov.uk/search?search=E07000114,Thanet District Council,26/09/2016,PC8688,121.00,,Possession Claims Online,N/A,Community Services,Revenue,Services,Various Cats - Public Sector,
http://statistics.data.gov.uk/search?search=E07000114,Thanet District Council,26/09/2016,PC8703,325.00,,Possession Claims Online,N/A,Community Services,Revenue,Services,Various Cats - Public Sector,
http://statistics.data.gov.uk/search?search=E07000114,Thanet District Council,26/09/2016,PC8720,146.44,,PPL,N/A,Community Services,Revenue,Services,Arts & Leisure Services,
http://statistics.data.gov.uk/search?search=E07000114,Thanet District Council,26/09/2016,PC8705,66.24,,Premier Inn,N/A,Operational Services,Revenue,"Equip, Furniture And Materials",Human Resources,
http://statistics.data.gov.uk/search?search=E07000114,Thanet District Council,26/09/2016,PC8711,14.40,,Proper Coffee House,N/A,Community Services,Revenue,Expenses,Catering,
http://statistics.data.gov.uk/search?search=E07000114,Thanet District Council,26/09/2016,417424,19350.00,,Public Works Loan Board,PWL001,Corporate Resources and S151,Balance Sheet,Debit Interest And Expenses,Investments And Loans,
http://statistics.data.gov.uk/search?search=E07000114,Thanet District Council,26/09/2016,PC8717,28.52,,RIBA Enterprises Ltd,N/A,East Kent Housing,Revenue,"Print, Stat And Gen Off Exps",Stationery,
http://statistics.data.gov.uk/search?search=E07000114,Thanet District Council,26/09/2016,PC8653,23.70,,Southeastern Web,N/A,Community Services,Revenue,Public Transport,Human Resources,
http://statistics.data.gov.uk/search?search=E07000114,Thanet District Council,26/09/2016,PC8679,56.10,,Southeastern Web,N/A,Community Services,Revenue,Public Transport,Human Resources,
http://statistics.data.gov.uk/search?search=E07000114,Thanet District Council,26/09/2016,PC8706,-19.20,,Southeastern Web,N/A,Community Services,Revenue,Public Transport,Human Resources,
http://statistics.data.gov.uk/search?search=E07000114,Thanet District Council,26/09/2016,PC8707,57.10,,Southeastern Web,N/A,East Kent Shared Services,Revenue,Public Transport,Human Resources,
http://statistics.data.gov.uk/search?search=E07000114,Thanet District Council,26/09/2016,PC8708,52.70,,Southeastern Web,N/A,East Kent Shared Services,Revenue,Public Transport,Human Resources,
http://statistics.data.gov.uk/search?search=E07000114,Thanet District Council,26/09/2016,PC8709,121.20,,Southeastern Web,N/A,Community Services,Revenue,Public Transport,Human Resources,
http://statistics.data.gov.uk/search?search=E07000114,Thanet District Council,26/09/2016,PC8718,150.40,,Southeastern Web,N/A,Operational Services,Revenue,Public Transport,Human Resources,
http://statistics.data.gov.uk/search?search=E07000114,Thanet District Council,26/09/2016,PC8719,155.40,,Southeastern Web,N/A,East Kent Shared Services,Revenue,Public Transport,Human Resources,
http://statistics.data.gov.uk/search?search=E07000114,Thanet District Council,26/09/2016,PC8722,27.00,,Southeastern Web,N/A,East Kent Shared Services,Revenue,Public Transport,Human Resources,
http://statistics.data.gov.uk/search?search=E07000114,Thanet District Council,26/09/2016,PC8727,47.50,,Southeastern Web,N/A,Corporate Governance,Revenue,Public Transport,Human Resources,
http://statistics.data.gov.uk/search?search=E07000114,Thanet District Council,26/09/2016,PC8740,47.90,,Southeastern Web,N/A,Community Services,Revenue,Public Transport,Human Resources,
http://statistics.data.gov.uk/search?search=E07000114,Thanet District Council,26/09/2016,PC8741,47.10,,Southeastern Web,N/A,East Kent Shared Services,Revenue,Public Transport,Human Resources,
http://statistics.data.gov.uk/search?search=E07000114,Thanet District Council,26/09/2016,PC8742,52.30,,Southeastern Web,N/A,East Kent Shared Services,Revenue,Public Transport,Human Resources,
http://statistics.data.gov.uk/search?search=E07000114,Thanet District Council,26/09/2016,PC8743,25.40,,Southeastern Web,N/A,East Kent Shared Services,Revenue,Public Transport,Human Resources,
http://statistics.data.gov.uk/search?search=E07000114,Thanet District Council,26/09/2016,PC8762,-47.90,,Southeastern Web,N/A,Community Services,Revenue,Public Transport,Human Resources,
http://statistics.data.gov.uk/search?search=E07000114,Thanet District Council,26/09/2016,PC8733,20.12,,Tesco,N/A,Community Services,Revenue,Catering,Catering,
http://statistics.data.gov.uk/search?search=E07000114,Thanet District Council,26/09/2016,PC8696,28.62,,Tesco ,N/A,Operational Services,Revenue,Catering,Catering,
http://statistics.data.gov.uk/search?search=E07000114,Thanet District Council,26/09/2016,PC8673,121.00,,Thanet County Court,N/A,Community Services,Revenue,Services,Various Cats - Public Sector,
http://statistics.data.gov.uk/search?search=E07000114,Thanet District Council,26/09/2016,PC8704,355.00,,Thanet County Court,N/A,Community Services,Revenue,Services,Various Cats - Public Sector,
http://statistics.data.gov.uk/search?search=E07000114,Thanet District Council,26/09/2016,PC8730,44.00,,Thanet County Court,N/A,Community Services,Revenue,Services,Various Cats - Public Sector,
http://statistics.data.gov.uk/search?search=E07000114,Thanet District Council,26/09/2016,PC8731,44.00,,Thanet County Court,N/A,Community Services,Revenue,Services,Various Cats - Public Sector,
http://statistics.data.gov.uk/search?search=E07000114,Thanet District Council,26/09/2016,PC8732,355.00,,Thanet County Court,N/A,Community Services,Revenue,Services,Various Cats - Public Sector,
http://statistics.data.gov.uk/search?search=E07000114,Thanet District Council,26/09/2016,PC8693,10.82,,Toolstation Ltd,N/A,Community Services,Revenue,"Equip, Furniture And Materials",Building Construction Material,
http://statistics.data.gov.uk/search?search=E07000114,Thanet District Council,26/09/2016,PC8737,122.50,,Tourism South East,N/A,Community Services,Revenue,Expenses,Human Resources,
http://statistics.data.gov.uk/search?search=E07000114,Thanet District Council,26/09/2016,PC8675,21.89,,Viking Direct,N/A,Operational Services,Revenue,"Print, Stat And Gen Off Exps",Stationery,
http://statistics.data.gov.uk/search?search=E07000114,Thanet District Council,26/09/2016,PC8676,201.00,,Virgin Trains,N/A,East Kent Shared Services,Revenue,Public Transport,Human Resources,
http://statistics.data.gov.uk/search?search=E07000114,Thanet District Council,26/09/2016,PC8739,145.50,,Virgin Trains,N/A,Community Services,Revenue,Public Transport,Human Resources,
http://statistics.data.gov.uk/search?search=E07000114,Thanet District Council,26/09/2016,PC8726,60.00,,White Horses,N/A,East Kent Shared Services,Revenue,Expenses,Human Resources,
http://statistics.data.gov.uk/search?search=E07000114,Thanet District Council,26/09/2016,PC8764,7.37,,Wilko Retail Ltd,N/A,Operational Services,Revenue,"Equip, Furniture And Materials",Facilities And Management Serv,
http://statistics.data.gov.uk/search?search=E07000114,Thanet District Council,26/09/2016,PC8734,49.46,8.25,WM Morrisons PLC,N/A,Community Services,Revenue,Catering,Catering,
http://statistics.data.gov.uk/search?search=E07000114,Thanet District Council,26/09/2016,PC8744,9.05,1.51,WM Morrisons PLC,N/A,East Kent Shared Services,Revenue,Catering,Catering,
http://statistics.data.gov.uk/search?search=E07000114,Thanet District Council,26/09/2016,417314,543.63,,Worldpay Ltd,WOR008,Operational Services,Revenue,Services,Financial Services,
http://statistics.data.gov.uk/search?search=E07000114,Thanet District Council,26/09/2016,PC8716,235.62,,Wpchrg.com,N/A,Community Services,Revenue,Communications & Computing,Facilities And Management Serv,
http://statistics.data.gov.uk/search?search=E07000114,Thanet District Council,27/09/2016,417177,6005.07,,Albion Fencing&Construction Kent Ltd,ALB005,Operational Services,Revenue,"Repairs,  Alter & Mtce - Build",Building Construction Material,
http://statistics.data.gov.uk/search?search=E07000114,Thanet District Council,27/09/2016,417641,313.26,,Allstar Business Solutions Ltd,ALL038,Operational Services,Revenue,Direct Transport Costs,Vehicle Management,
http://statistics.data.gov.uk/search?search=E07000114,Thanet District Council,27/09/2016,416472,329.60,,Andrews & Elliott Limited,AND001,Operational Services,Revenue,"Repairs,  Alter & Mtce - Build",Cemetery And Crematorium,
http://statistics.data.gov.uk/search?search=E07000114,Thanet District Council,27/09/2016,417183,535.00,,Bp Drains Ltd,BPD001,Corporate Governance,Revenue,"Repairs,  Alter & Mtce - Build",Construction-Repair And Maint,
http://statistics.data.gov.uk/search?search=E07000114,Thanet District Council,27/09/2016,416386,8825.24,,British Telecommunications Plc,BTE005,Operational Services,Revenue,Communications & Computing,ICT,
http://statistics.data.gov.uk/search?search=E07000114,Thanet District Council,27/09/2016,417391,19878.33,,Canterbury City Council,CAN004,East Kent Shared Services,Revenue,Grants & Subscriptions,Various Cats - Public Sector,
http://statistics.data.gov.uk/search?search=E07000114,Thanet District Council,27/09/2016,417203,2500.00,,Charterhouse Voice & Data Plc,CHA060,East Kent Shared Services,Revenue,Communications & Computing,ICT,
http://statistics.data.gov.uk/search?search=E07000114,Thanet District Council,27/09/2016,417384,5500.00,,Charterhouse Voice & Data Plc,CHA060,East Kent Shared Services,Revenue,Communications & Computing,ICT,
http://statistics.data.gov.uk/search?search=E07000114,Thanet District Council,27/09/2016,417430,2800.20,,Cure Developments Limited,CUR005,Corporate Resources and S151,Balance Sheet,Capital Exp-Non Council Assets,Grants,
http://statistics.data.gov.uk/search?search=E07000114,Thanet District Council,27/09/2016,416038,2955.01,,Dha Planning Limited,DHA002,Community Services,Revenue,Services,Consultancy,
http://statistics.data.gov.uk/search?search=E07000114,Thanet District Council,27/09/2016,416013,2376.00,,Disclosure And Barring Service,DIS017,Community Services,Revenue,"Equip, Furniture And Materials",Human Resources,
http://statistics.data.gov.uk/search?search=E07000114,Thanet District Council,27/09/2016,416245,498.64,,Edf Energy Customers Plc,SEE014,Corporate Governance,Revenue,Energy Costs,Utilities,
http://statistics.data.gov.uk/search?search=E07000114,Thanet District Council,27/09/2016,417433,835.52,,Family Mosaic Housing,FAM001,Corporate Resources and S151,Balance Sheet,Capital Exp-Non Council Assets,Housing Management,
http://statistics.data.gov.uk/search?search=E07000114,Thanet District Council,27/09/2016,416992,2521.25,,G & W Gardner Building Cont Ltd,GAR001,Operational Services,Revenue,"Repairs,  Alter & Mtce - Build",Construction-Repair And Maint,
http://statistics.data.gov.uk/search?search=E07000114,Thanet District Council,27/09/2016,416986,470.71,,H E Municipal Engineering Ltd,HEM003,Operational Services,Revenue,Direct Transport Costs,Vehicle Management,
http://statistics.data.gov.uk/search?search=E07000114,Thanet District Council,27/09/2016,416567,560.00,,Hays Specialist Recruitment Ltd,HAY020,Operational Services,Revenue,Agency Staff,Human Resources,
http://statistics.data.gov.uk/search?search=E07000114,Thanet District Council,27/09/2016,417027,1400.00,,Hays Specialist Recruitment Ltd,HAY020,Operational Services,Revenue,Agency Staff,Human Resources,
http://statistics.data.gov.uk/search?search=E07000114,Thanet District Council,27/09/2016,417191,280.00,,Hays Specialist Recruitment Ltd,HAY020,Corporate Resources and S151,Revenue,Services,Human Resources,
http://statistics.data.gov.uk/search?search=E07000114,Thanet District Council,27/09/2016,414400,20997.33,,Health & Safety Executive,HEA017,Corporate Resources and S151,Balance Sheet,Provisions-Future Settlement,Health And Safety,
http://statistics.data.gov.uk/search?search=E07000114,Thanet District Council,27/09/2016,416851,991.95,,Hilton Cabinet Co Ltd,HIL002,Operational Services,Revenue,"Equip, Furniture And Materials",Furniture And Soft Furnishings,
http://statistics.data.gov.uk/search?search=E07000114,Thanet District Council,27/09/2016,417002,875.42,,Hr Go (Kent) Ltd,HRG001,Operational Services,Revenue,Agency Staff,Human Resources,
http://statistics.data.gov.uk/search?search=E07000114,Thanet District Council,27/09/2016,417006,1247.30,,Hr Go (Kent) Ltd,HRG001,Operational Services,Revenue,Agency Staff,Human Resources,
http://statistics.data.gov.uk/search?search=E07000114,Thanet District Council,27/09/2016,417008,1832.81,,Hr Go (Kent) Ltd,HRG001,Operational Services,Revenue,Agency Staff,Human Resources,
http://statistics.data.gov.uk/search?search=E07000114,Thanet District Council,27/09/2016,417010,1643.17,,Hr Go (Kent) Ltd,HRG001,Operational Services,Revenue,Agency Staff,Human Resources,
http://statistics.data.gov.uk/search?search=E07000114,Thanet District Council,27/09/2016,417023,9111.82,,Hr Go (Kent) Ltd,HRG001,Operational Services,Revenue,Agency Staff,Human Resources,
http://statistics.data.gov.uk/search?search=E07000114,Thanet District Council,27/09/2016,417024,6107.02,,Hr Go (Kent) Ltd,HRG001,Operational Services,Revenue,Agency Staff,Human Resources,
http://statistics.data.gov.uk/search?search=E07000114,Thanet District Council,27/09/2016,417025,9452.70,,Hr Go (Kent) Ltd,HRG001,Operational Services,Revenue,Agency Staff,Human Resources,
http://statistics.data.gov.uk/search?search=E07000114,Thanet District Council,27/09/2016,417410,529.47,,Hr Go (Kent) Ltd,HRG001,Community Services,Revenue,Agency Staff,Human Resources,
http://statistics.data.gov.uk/search?search=E07000114,Thanet District Council,27/09/2016,416385,425.00,,Ifzw Maintenance Ltd,IFZ001,Operational Services,Revenue,"Equip, Furniture And Materials",Cemetery And Crematorium,
http://statistics.data.gov.uk/search?search=E07000114,Thanet District Council,27/09/2016,417063,650.00,,Iken Business Ltd,IKE001,Corporate Governance,Revenue,Communications & Computing,ICT,
http://statistics.data.gov.uk/search?search=E07000114,Thanet District Council,27/09/2016,417184,1950.00,,Imperial Civil Enforcement Sols Ltd,IMP008,Operational Services,Revenue,Communications & Computing,Street And Traffic Management,
http://statistics.data.gov.uk/search?search=E07000114,Thanet District Council,27/09/2016,416996,492.08,,J Rospo Building Contractors Ltd,ROS001,Corporate Resources and S151,Balance Sheet,Rechargeable Works,Construction-Repair And Maint,
http://statistics.data.gov.uk/search?search=E07000114,Thanet District Council,27/09/2016,417434,1093.20,,John Gale,GAL001,Corporate Resources and S151,Balance Sheet,Capital Exp-Non Council Assets,Grants,
http://statistics.data.gov.uk/search?search=E07000114,Thanet District Council,27/09/2016,417269,6508.63,,Kent County Council,KCC002,Corporate Resources and S151,Balance Sheet,Capital Exp-Non Council Assets,Various Cats - Public Sector,
http://statistics.data.gov.uk/search?search=E07000114,Thanet District Council,27/09/2016,417270,2452.60,,Kent County Council,KCC002,Corporate Resources and S151,Balance Sheet,Capital Exp-Non Council Assets,Various Cats - Public Sector,
http://statistics.data.gov.uk/search?search=E07000114,Thanet District Council,27/09/2016,417271,7202.42,,Kent County Council,KCC002,Corporate Resources and S151,Balance Sheet,Capital Exp-Non Council Assets,Various Cats - Public Sector,
http://statistics.data.gov.uk/search?search=E07000114,Thanet District Council,27/09/2016,417272,8665.96,,Kent County Council,KCC002,Corporate Resources and S151,Balance Sheet,Capital Exp-Non Council Assets,Various Cats - Public Sector,
http://statistics.data.gov.uk/search?search=E07000114,Thanet District Council,27/09/2016,416871,32470.02,,Kent County Council (Kcs),KCC003,Operational Services,Revenue,Direct Transport Costs,Facilities And Management Serv,
http://statistics.data.gov.uk/search?search=E07000114,Thanet District Council,27/09/2016,417516,300.00,,Lavinia Glover,GLO017,Chief Executive,Revenue,Services,Legal Services,
http://statistics.data.gov.uk/search?search=E07000114,Thanet District Council,27/09/2016,416515,7956.70,,Ling Metals Limited,LIN004,Operational Services,Revenue,Cleaning & Domestic Supplies,Environmental Services,
http://statistics.data.gov.uk/search?search=E07000114,Thanet District Council,27/09/2016,417335,638.00,,Lister Wilder Limited,LIS002,Operational Services,Revenue,"Equip, Furniture And Materials",Horticultural,
http://statistics.data.gov.uk/search?search=E07000114,Thanet District Council,27/09/2016,417053,581.70,,Loomis Uk Ltd,LOO002,Operational Services,Revenue,Services,Financial Services,
http://statistics.data.gov.uk/search?search=E07000114,Thanet District Council,27/09/2016,417056,2149.38,,M T Coleman,COL029,Operational Services,Revenue,Cont Hire & Operating Lease,Vehicle Management,
http://statistics.data.gov.uk/search?search=E07000114,Thanet District Council,27/09/2016,417038,300.00,,Maxwells Grounds Maintenance Ltd,MAX002,Corporate Governance,Revenue,"Repairs,  Alter & Mtce - Build",Construction-Repair And Maint,
http://statistics.data.gov.uk/search?search=E07000114,Thanet District Council,27/09/2016,417179,770.89,,Mears Ltd,MEA003,Operational Services,Revenue,"Repairs,  Alter & Mtce - Build",Construction-Repair And Maint,
http://statistics.data.gov.uk/search?search=E07000114,Thanet District Council,27/09/2016,416893,370.00,,Med Clean South Ltd,MED015,Operational Services,Revenue,"Repairs,  Alter & Mtce - Build",Cleaning And Janitorial,
http://statistics.data.gov.uk/search?search=E07000114,Thanet District Council,27/09/2016,416234,3255.00,,Metric Group Ltd,MET001,Operational Services,Revenue,"Equip, Furniture And Materials",Street And Traffic Management,
http://statistics.data.gov.uk/search?search=E07000114,Thanet District Council,27/09/2016,416938,-630.00,,Metric Group Ltd,MET001,Operational Services,Revenue,"Equip, Furniture And Materials",Street And Traffic Management,
http://statistics.data.gov.uk/search?search=E07000114,Thanet District Council,27/09/2016,417195,5074.00,,Midland Industrial Flooring Limited,MID015,Operational Services,Revenue,"Equip, Furniture And Materials",Construction-Repair And Maint,
http://statistics.data.gov.uk/search?search=E07000114,Thanet District Council,27/09/2016,416382,493.68,,Morgan Jones Ltd,MOR001,Corporate Resources and S151,Revenue,Agency Staff,Human Resources,
http://statistics.data.gov.uk/search?search=E07000114,Thanet District Council,27/09/2016,417435,10932.00,,Northwood Builders,NOR002,Corporate Resources and S151,Balance Sheet,Capital Exp-Non Council Assets,Grants,
http://statistics.data.gov.uk/search?search=E07000114,Thanet District Council,27/09/2016,417320,1855.00,,Oscar Associates (Uk) Limited,OSC001,East Kent Shared Services,Revenue,Agency Staff,ICT,
http://statistics.data.gov.uk/search?search=E07000114,Thanet District Council,27/09/2016,416958,861.90,,Parkeon Limited,PAR063,Operational Services,Revenue,"Equip, Furniture And Materials",Street And Traffic Management,
http://statistics.data.gov.uk/search?search=E07000114,Thanet District Council,27/09/2016,416351,1565.00,,Profile Security Services Limited,PRO018,Operational Services,Revenue,Services,Facilities And Management Serv,
http://statistics.data.gov.uk/search?search=E07000114,Thanet District Council,27/09/2016,417192,-303.00,,Profile Security Services Limited,PRO018,Operational Services,Revenue,Services,Facilities And Management Serv,
http://statistics.data.gov.uk/search?search=E07000114,Thanet District Council,27/09/2016,417439,7221.43,,REDACTED PERSONAL DATA,N/A,Corporate Resources and S151,Balance Sheet,Capital Exp-Non Council Assets,Grants,
http://statistics.data.gov.uk/search?search=E07000114,Thanet District Council,27/09/2016,417440,18190.54,,REDACTED PERSONAL DATA,N/A,Corporate Resources and S151,Balance Sheet,Capital Exp-Non Council Assets,Grants,
http://statistics.data.gov.uk/search?search=E07000114,Thanet District Council,27/09/2016,416939,360.00,,Rigby Taylor Ltd,RIG002,Operational Services,Revenue,"Equip, Furniture And Materials",Horticultural,
http://statistics.data.gov.uk/search?search=E07000114,Thanet District Council,27/09/2016,417390,3037.50,,Securitas Security Services (Uk) Ltd,SEC019,Corporate Governance,Revenue,Services,Facilities And Management Serv,
http://statistics.data.gov.uk/search?search=E07000114,Thanet District Council,27/09/2016,416285,282.28,,Southern Electric,SEL007,Operational Services,Revenue,Energy Costs,Utilities,
http://statistics.data.gov.uk/search?search=E07000114,Thanet District Council,27/09/2016,416302,4.88,,Southern Electric,SEL007,Community Services,Revenue,Energy Costs,Utilities,
http://statistics.data.gov.uk/search?search=E07000114,Thanet District Council,27/09/2016,416302,515.80,,Southern Electric,SEL007,Operational Services,Revenue,Energy Costs,Utilities,
http://statistics.data.gov.uk/search?search=E07000114,Thanet District Council,27/09/2016,416928,284.51,,Southern Electric,SEL007,Community Services,Revenue,Energy Costs,Utilities,
http://statistics.data.gov.uk/search?search=E07000114,Thanet District Council,27/09/2016,416742,3842.28,,Southern Water,SWA001,Operational Services,Revenue,Water Services,Utilities,
http://statistics.data.gov.uk/search?search=E07000114,Thanet District Council,27/09/2016,416905,-297.71,,Southern Water,SWA001,Corporate Governance,Revenue,Water Services,Utilities,
http://statistics.data.gov.uk/search?search=E07000114,Thanet District Council,27/09/2016,416917,327.43,,Southern Water,SWA001,Operational Services,Revenue,Water Services,Utilities,
http://statistics.data.gov.uk/search?search=E07000114,Thanet District Council,27/09/2016,416990,296.40,,Southern Water,SWA001,Operational Services,Revenue,Water Services,Utilities,
http://statistics.data.gov.uk/search?search=E07000114,Thanet District Council,27/09/2016,416991,1794.85,,Southern Water,SWA001,Operational Services,Revenue,Water Services,Utilities,
http://statistics.data.gov.uk/search?search=E07000114,Thanet District Council,27/09/2016,417030,620.21,,Southern Water,SWA001,Operational Services,Revenue,Water Services,Utilities,
http://statistics.data.gov.uk/search?search=E07000114,Thanet District Council,27/09/2016,416368,25345.88,,Swale Heating Ltd,SWA006,Corporate Resources and S151,Balance Sheet,Repairs And Mtce Holding A/C,Building Construction Material,
http://statistics.data.gov.uk/search?search=E07000114,Thanet District Council,27/09/2016,416370,589.00,,Swale Heating Ltd,SWA006,Corporate Resources and S151,Balance Sheet,Repairs And Mtce Holding A/C,Building Construction Material,
http://statistics.data.gov.uk/search?search=E07000114,Thanet District Council,27/09/2016,416479,451.84,,Swann Of York Limited,SWA009,Community Services,Revenue,"Equip, Furniture And Materials",Stationery,
http://statistics.data.gov.uk/search?search=E07000114,Thanet District Council,27/09/2016,417327,1400.00,,The Duncan & Graham Partnership Ltd,DUN015,Corporate Resources and S151,Balance Sheet,Council Dwellings,Consultancy,
http://statistics.data.gov.uk/search?search=E07000114,Thanet District Council,27/09/2016,416511,3291.67,,The Glenwood Hotel,GLE007,Community Services,Revenue,Services,Housing Management,
http://statistics.data.gov.uk/search?search=E07000114,Thanet District Council,27/09/2016,416512,1458.32,,The Glenwood Hotel,GLE007,Community Services,Revenue,Services,Housing Management,
http://statistics.data.gov.uk/search?search=E07000114,Thanet District Council,27/09/2016,416514,2766.66,,The Glenwood Hotel,GLE007,Community Services,Revenue,Services,Housing Management,
http://statistics.data.gov.uk/search?search=E07000114,Thanet District Council,27/09/2016,416906,1666.65,,The Glenwood Hotel,GLE007,Community Services,Revenue,Services,Housing Management,
http://statistics.data.gov.uk/search?search=E07000114,Thanet District Council,27/09/2016,417284,1416.65,,The Glenwood Hotel,GLE007,Community Services,Revenue,Services,Housing Management,
http://statistics.data.gov.uk/search?search=E07000114,Thanet District Council,27/09/2016,417285,2312.49,,The Glenwood Hotel,GLE007,Community Services,Revenue,Services,Housing Management,
http://statistics.data.gov.uk/search?search=E07000114,Thanet District Council,27/09/2016,417286,3500.01,,The Glenwood Hotel,GLE007,Community Services,Revenue,Services,Housing Management,
http://statistics.data.gov.uk/search?search=E07000114,Thanet District Council,27/09/2016,417431,4672.00,,Titan Lifts Ltd,TIT006,Corporate Resources and S151,Balance Sheet,Capital Exp-Non Council Assets,Facilities And Management Serv,
http://statistics.data.gov.uk/search?search=E07000114,Thanet District Council,27/09/2016,416995,264.26,,Total Supplies Ltd,TOT009,Corporate Resources and S151,Revenue,Cleaning & Domestic Supplies,Cleaning And Janitorial,
http://statistics.data.gov.uk/search?search=E07000114,Thanet District Council,27/09/2016,417432,6018.27,,Trueden Disability Adaptations Ltd,TRU012,Corporate Resources and S151,Balance Sheet,Capital Exp-Non Council Assets,Grants,
http://statistics.data.gov.uk/search?search=E07000114,Thanet District Council,27/09/2016,417217,12000.00,,Turner & Townsend Project Mgmt Ltd,TUR021,Community Services,Revenue,Services,Consultancy,
http://statistics.data.gov.uk/search?search=E07000114,Thanet District Council,27/09/2016,414044,3673.34,,Uplands Engineering Ltd,UPL001,Operational Services,Revenue,"Repairs,  Alter & Mtce - Build",Maritime Services,
http://statistics.data.gov.uk/search?search=E07000114,Thanet District Council,27/09/2016,416976,1500.00,,Your Leisure Kent Limited,YOU016,Operational Services,Revenue,Services,Arts And Leisure Services,
http://statistics.data.gov.uk/search?search=E07000114,Thanet District Council,29/09/2016,416390,622.22,,British Telecommunications Plc,BTE005,Operational Services,Revenue,Communications & Computing,ICT,
http://statistics.data.gov.uk/search?search=E07000114,Thanet District Council,29/09/2016,417664,1000.00,,Business Computer Solutions Ltd,BUS002,Corporate Governance,Revenue,Services,ICT,
http://statistics.data.gov.uk/search?search=E07000114,Thanet District Council,29/09/2016,417057,783.75,,Channel Commercials Plc,CCO001,Operational Services,Revenue,Direct Transport Costs,Vehicle Management,
http://statistics.data.gov.uk/search?search=E07000114,Thanet District Council,29/09/2016,417696,515.09,,Family Mosaic Housing,FAM001,Corporate Resources and S151,Balance Sheet,Capital Exp-Non Council Assets,Housing Management,
http://statistics.data.gov.uk/search?search=E07000114,Thanet District Council,29/09/2016,417697,1054.26,,Family Mosaic Housing,FAM001,Corporate Resources and S151,Balance Sheet,Capital Exp-Non Council Assets,Housing Management,
http://statistics.data.gov.uk/search?search=E07000114,Thanet District Council,29/09/2016,417408,261.36,,Hr Go (Kent) Ltd,HRG001,Operational Services,Revenue,Agency Staff,Human Resources,
http://statistics.data.gov.uk/search?search=E07000114,Thanet District Council,29/09/2016,417409,1829.52,,Hr Go (Kent) Ltd,HRG001,Operational Services,Revenue,Agency Staff,Human Resources,
http://statistics.data.gov.uk/search?search=E07000114,Thanet District Council,29/09/2016,417490,309.75,,Hr Go (Kent) Ltd,HRG001,Corporate Resources and S151,Revenue,Agency Staff,Human Resources,
http://statistics.data.gov.uk/search?search=E07000114,Thanet District Council,29/09/2016,396766,29650.00,,Idox Software  Limited,IDO001,Corporate Resources and S151,Balance Sheet,Plant And Equipment,ICT,
http://statistics.data.gov.uk/search?search=E07000114,Thanet District Council,29/09/2016,417694,1039.30,,John Gale,GAL001,Corporate Resources and S151,Balance Sheet,Capital Exp-Non Council Assets,Grants,
http://statistics.data.gov.uk/search?search=E07000114,Thanet District Council,29/09/2016,417268,3696.00,,Kent County Council,KCC002,Community Services,Revenue,Services,Various Cats - Public Sector,
http://statistics.data.gov.uk/search?search=E07000114,Thanet District Council,29/09/2016,417254,355.95,,Kent County Council (Kcs),KCC003,Operational Services,Revenue,"Equip, Furniture And Materials",Facilities And Management Serv,
http://statistics.data.gov.uk/search?search=E07000114,Thanet District Council,29/09/2016,417662,2222.99,,Kent County Council (Kcs),KCC003,Operational Services,Revenue,"Equip, Furniture And Materials",Facilities And Management Serv,
http://statistics.data.gov.uk/search?search=E07000114,Thanet District Council,29/09/2016,417663,2591.80,,Kent County Council (Kcs),KCC003,Operational Services,Revenue,"Equip, Furniture And Materials",Facilities And Management Serv,
http://statistics.data.gov.uk/search?search=E07000114,Thanet District Council,29/09/2016,416852,12168.85,,Mears Ltd,MEA003,Corporate Resources and S151,Balance Sheet,Repairs And Mtce Holding A/C,Construction-Repair And Maint,
http://statistics.data.gov.uk/search?search=E07000114,Thanet District Council,29/09/2016,416853,20612.47,,Mears Ltd,MEA003,Corporate Resources and S151,Balance Sheet,Repairs And Mtce Holding A/C,Construction-Repair And Maint,
http://statistics.data.gov.uk/search?search=E07000114,Thanet District Council,29/09/2016,416854,1014.94,,Mears Ltd,MEA003,Corporate Resources and S151,Balance Sheet,Repairs And Mtce Holding A/C,Construction-Repair And Maint,
http://statistics.data.gov.uk/search?search=E07000114,Thanet District Council,29/09/2016,416855,12192.99,,Mears Ltd,MEA003,Corporate Resources and S151,Balance Sheet,Repairs And Mtce Holding A/C,Construction-Repair And Maint,
http://statistics.data.gov.uk/search?search=E07000114,Thanet District Council,29/09/2016,416857,24510.80,,Mears Ltd,MEA003,Corporate Resources and S151,Balance Sheet,Repairs And Mtce Holding A/C,Construction-Repair And Maint,
http://statistics.data.gov.uk/search?search=E07000114,Thanet District Council,29/09/2016,417257,4970.17,,Mears Ltd,MEA003,Corporate Resources and S151,Balance Sheet,Repairs And Mtce Holding A/C,Construction-Repair And Maint,
http://statistics.data.gov.uk/search?search=E07000114,Thanet District Council,29/09/2016,417258,750.09,,Mears Ltd,MEA003,Corporate Resources and S151,Balance Sheet,Repairs And Mtce Holding A/C,Construction-Repair And Maint,
http://statistics.data.gov.uk/search?search=E07000114,Thanet District Council,29/09/2016,417259,6640.17,,Mears Ltd,MEA003,Corporate Resources and S151,Balance Sheet,Repairs And Mtce Holding A/C,Construction-Repair And Maint,
http://statistics.data.gov.uk/search?search=E07000114,Thanet District Council,29/09/2016,417260,5756.57,,Mears Ltd,MEA003,Corporate Resources and S151,Balance Sheet,Repairs And Mtce Holding A/C,Construction-Repair And Maint,
http://statistics.data.gov.uk/search?search=E07000114,Thanet District Council,29/09/2016,417261,3733.80,,Mears Ltd,MEA003,Corporate Resources and S151,Balance Sheet,Repairs And Mtce Holding A/C,Construction-Repair And Maint,
http://statistics.data.gov.uk/search?search=E07000114,Thanet District Council,29/09/2016,417262,2625.52,,Mears Ltd,MEA003,Corporate Resources and S151,Balance Sheet,Repairs And Mtce Holding A/C,Construction-Repair And Maint,
http://statistics.data.gov.uk/search?search=E07000114,Thanet District Council,29/09/2016,417263,10415.82,,Mears Ltd,MEA003,Corporate Resources and S151,Balance Sheet,Repairs And Mtce Holding A/C,Construction-Repair And Maint,
http://statistics.data.gov.uk/search?search=E07000114,Thanet District Council,29/09/2016,417322,582.75,,Morgan Jones Ltd,MOR001,Community Services,Revenue,Agency Staff,Human Resources,
http://statistics.data.gov.uk/search?search=E07000114,Thanet District Council,29/09/2016,416468,18.73,,Nov Process & Flow Tech Uk Ltd,NOV009,Operational Services,Revenue,"Equip, Furniture And Materials",Maritime Services,
http://statistics.data.gov.uk/search?search=E07000114,Thanet District Council,29/09/2016,416468,1122.80,,Nov Process & Flow Tech Uk Ltd,NOV009,Operational Services,Revenue,"Repairs,  Alter & Mtce - Build",Maritime Services,
http://statistics.data.gov.uk/search?search=E07000114,Thanet District Council,29/09/2016,417693,12048.00,,Pollock Lifts Limited,POL001,Corporate Resources and S151,Balance Sheet,Capital Exp-Non Council Assets,Grants,
http://statistics.data.gov.uk/search?search=E07000114,Thanet District Council,29/09/2016,417451,600.00,,Puls Global Ltd,PUL006,Operational Services,Revenue,"Equip, Furniture And Materials",Facilities And Management Serv,
http://statistics.data.gov.uk/search?search=E07000114,Thanet District Council,29/09/2016,417698,13000.00,,Ramsgate Town Council,RAM031,Community Services,Revenue,Grants & Subscriptions,Various Cats - Public Sector,
http://statistics.data.gov.uk/search?search=E07000114,Thanet District Council,29/09/2016,417699,5000.00,,Ramsgate Town Council,RAM031,Community Services,Revenue,Grants & Subscriptions,Various Cats - Public Sector,
http://statistics.data.gov.uk/search?search=E07000114,Thanet District Council,29/09/2016,414822,16250.00,,Siemens Plc,SIE002,Operational Services,Revenue,"Equip, Furniture And Materials",Facilities And Management Serv,
http://statistics.data.gov.uk/search?search=E07000114,Thanet District Council,29/09/2016,417695,8576.25,,South East Adaptations Limited,SOU026,Corporate Resources and S151,Balance Sheet,Capital Exp-Non Council Assets,Grants,
http://statistics.data.gov.uk/search?search=E07000114,Thanet District Council,29/09/2016,417446,25000.00,,The Pipeline,PIP002,Community Services,Revenue,Grants & Subscriptions,Various Categories,
http://statistics.data.gov.uk/search?search=E07000114,Thanet District Council,29/09/2016,417701,1753.00,,Titan Lifts Ltd,TIT006,Corporate Resources and S151,Balance Sheet,Capital Exp-Non Council Assets,Facilities And Management Serv,
http://statistics.data.gov.uk/search?search=E07000114,Thanet District Council,29/09/2016,413711,2238.00,,Uplands Engineering Ltd,UPL001,Operational Services,Revenue,"Equip, Furniture And Materials",Maritime Services,
http://statistics.data.gov.uk/search?search=E07000114,Thanet District Council,29/09/2016,416325,1500.00,,Uplands Engineering Ltd,UPL001,Operational Services,Revenue,"Equip, Furniture And Materials",Maritime Services,
http://statistics.data.gov.uk/search?search=E07000114,Thanet District Council,29/09/2016,417175,1545.00,,Uplands Engineering Ltd,UPL001,Operational Services,Revenue,"Equip, Furniture And Materials",Maritime Services,
http://statistics.data.gov.uk/search?search=E07000114,Thanet District Council,29/09/2016,414642,-350.00,,W Brazil & Bros,BRA001,Operational Services,Revenue,Grounds Mtce Costs,Environmental Services,
http://statistics.data.gov.uk/search?search=E07000114,Thanet District Council,29/09/2016,416969,400.00,,W Brazil & Bros,BRA001,Corporate Resources and S151,Balance Sheet,Repairs And Mtce Holding A/C,Environmental Services,
http://statistics.data.gov.uk/search?search=E07000114,Thanet District Council,29/09/2016,417702,228137.73,,Your Leisure Kent Limited,YOU016,Corporate Resources and S151,Balance Sheet,Your Leisure Management/Works,Arts And Leisure Services,
http://statistics.data.gov.uk/search?search=E07000114,Thanet District Council,30/09/2016,417815,18432.68,,Public Works Loan Board,PWL001,Corporate Resources and S151,Balance Sheet,Debit Interest And Expenses,Investments And Loans,
